{"text_format":"1","workbook":"xlsx","n_sheets":2,"sheets":["ورقة1","التفريغ"],"not_rendered":{"charts":0,"images":0,"macros":1,"external_links":0,"defined_names":2,"comments":0,"pivot_tables":0},"unopened":[],"bounds":{"document_bytes":16777216,"sheet_cells":100000,"rows_first":2000,"rows_last":500,"rows_between":2000,"halvings":0,"cell_chars":16384,"cell_head_chars":4096},"cells_cut":0,"cells_raw":0,"read":"whole","date_system":"1900"}

{"sheet":"ورقة1","index":0,"n_rows":464,"n_cols":22,"rows_kept":464,"cut":false,"hidden":false,"merged":[[162,10,162,12],[164,13,164,14],[165,13,165,14],[151,1,151,3],[151,7,151,8],[151,9,151,10],[152,1,152,3],[152,7,152,8],[152,9,152,10],[153,12,154,14],[157,7,157,8],[158,0,158,6],[158,9,158,14],[148,1,148,3],[148,7,148,8],[148,9,148,10],[149,1,149,3],[149,7,149,8],[149,9,149,10],[150,1,150,3],[150,7,150,8],[150,9,150,10],[146,1,146,3],[146,7,146,8],[146,9,146,10],[147,1,147,3],[147,7,147,8],[147,9,147,10],[142,1,142,3],[142,7,142,8],[142,9,142,10],[143,1,143,3],[143,7,143,8],[143,9,143,10],[144,1,144,3],[144,7,144,8],[144,9,144,10],[159,0,159,14],[161,0,161,2],[140,1,140,3],[140,7,140,8],[140,9,140,10],[141,1,141,3],[141,7,141,8],[141,9,141,10],[137,1,137,3],[137,7,137,8],[137,9,137,10],[138,1,138,3],[138,7,138,8],[138,9,138,10],[139,1,139,3],[139,7,139,8],[139,9,139,10],[145,1,145,3],[145,7,145,8],[145,9,145,10],[132,20,136,20],[132,21,136,21],[133,7,134,8],[133,9,133,10],[134,9,134,10],[134,11,135,11],[134,12,135,12],[134,13,136,13],[134,14,136,14],[135,7,136,7],[135,8,136,8],[124,0,124,14],[126,0,126,2],[127,10,127,12],[129,13,129,14],[130,13,130,14],[132,0,136,0],[132,1,136,3],[132,4,136,4],[132,5,136,5],[132,6,134,6],[132,7,132,8],[132,9,132,10],[132,11,133,14],[135,6,136,6],[116,1,116,3],[116,7,116,8],[116,9,116,10],[117,1,117,3],[117,7,117,8],[117,9,117,10],[118,12,119,14],[122,7,122,8],[123,0,123,6],[123,9,123,14],[113,1,113,3],[113,7,113,8],[113,9,113,10],[114,1,114,3],[114,7,114,8],[114,9,114,10],[115,1,115,3],[115,7,115,8],[115,9,115,10],[110,1,110,3],[110,7,110,8],[110,9,110,10],[111,1,111,3],[111,7,111,8],[111,9,111,10],[112,1,112,3],[112,7,112,8],[112,9,112,10],[106,1,106,3],[106,7,106,8],[106,9,106,10],[108,1,108,3],[108,7,108,8],[108,9,108,10],[109,1,109,3],[109,7,109,8],[109,9,109,10],[107,1,107,3],[107,7,107,8],[107,9,107,10],[103,1,103,3],[103,7,103,8],[103,9,103,10],[104,1,104,3],[104,7,104,8],[104,9,104,10],[105,1,105,3],[105,7,105,8],[105,9,105,10],[99,1,99,3],[99,7,99,8],[99,9,99,10],[101,1,101,3],[101,7,101,8],[101,9,101,10],[102,1,102,3],[102,7,102,8],[102,9,102,10],[100,1,100,3],[100,7,100,8],[100,9,100,10],[94,20,98,20],[94,21,98,21],[95,7,96,8],[95,9,95,10],[96,9,96,10],[96,11,97,11],[96,12,97,12],[96,13,98,13],[96,14,98,14],[97,7,98,7],[97,8,98,8],[82,0,82,14],[84,0,84,2],[85,10,85,12],[87,13,87,14],[88,13,88,14],[94,0,98,0],[94,1,98,3],[94,4,98,4],[94,5,98,5],[94,6,96,6],[94,7,94,8],[94,9,94,10],[94,11,95,14],[97,6,98,6],[74,1,74,3],[74,7,74,8],[74,9,74,10],[75,1,75,3],[75,7,75,8],[75,9,75,10],[76,12,77,14],[80,7,80,8],[81,0,81,6],[81,9,81,14],[71,1,71,3],[71,7,71,8],[71,9,71,10],[72,1,72,3],[72,7,72,8],[72,9,72,10],[73,1,73,3],[73,7,73,8],[73,9,73,10],[68,1,68,3],[68,7,68,8],[68,9,68,10],[69,1,69,3],[69,7,69,8],[69,9,69,10],[70,1,70,3],[70,7,70,8],[70,9,70,10],[65,1,65,3],[65,7,65,8],[65,9,65,10],[66,1,66,3],[66,7,66,8],[66,9,66,10],[67,1,67,3],[67,7,67,8],[67,9,67,10],[62,1,62,3],[62,7,62,8],[62,9,62,10],[63,1,63,3],[63,7,63,8],[63,9,63,10],[64,1,64,3],[64,7,64,8],[64,9,64,10],[59,1,59,3],[59,7,59,8],[59,9,59,10],[60,1,60,3],[60,7,60,8],[60,9,60,10],[61,1,61,3],[61,7,61,8],[61,9,61,10],[54,20,58,20],[54,21,58,21],[55,7,56,8],[55,9,55,10],[56,9,56,10],[56,11,57,11],[56,12,57,12],[56,13,58,13],[56,14,58,14],[57,7,58,7],[57,8,58,8],[54,0,58,0],[54,1,58,3],[54,4,58,4],[54,5,58,5],[54,6,56,6],[54,7,54,8],[54,9,54,10],[54,11,55,14],[57,6,58,6],[30,0,30,2],[28,0,28,14],[31,10,31,12],[33,13,33,14],[34,13,34,14],[21,1,21,3],[21,7,21,8],[21,9,21,10],[22,12,23,14],[26,7,26,8],[27,0,27,6],[27,9,27,14],[18,1,18,3],[18,7,18,8],[18,9,18,10],[19,1,19,3],[19,7,19,8],[19,9,19,10],[20,1,20,3],[20,7,20,8],[20,9,20,10],[16,1,16,3],[16,7,16,8],[16,9,16,10],[17,1,17,3],[17,7,17,8],[17,9,17,10],[14,1,14,3],[14,7,14,8],[14,9,14,10],[15,1,15,3],[15,7,15,8],[15,9,15,10],[12,1,12,3],[12,7,12,8],[12,9,12,10],[13,1,13,3],[13,7,13,8],[13,9,13,10],[10,1,10,3],[10,7,10,8],[10,9,10,10],[11,1,11,3],[11,7,11,8],[11,9,11,10],[8,1,8,3],[8,7,8,8],[8,9,8,10],[9,1,9,3],[9,7,9,8],[9,9,9,10],[6,1,6,3],[6,7,6,8],[6,9,6,10],[7,1,7,3],[7,7,7,8],[7,9,7,10],[0,20,4,20],[0,21,4,21],[5,1,5,3],[5,7,5,8],[5,9,5,10],[2,9,2,10],[0,0,4,0],[0,1,4,3],[0,4,4,4],[0,5,4,5],[0,6,2,6],[0,7,0,8],[0,9,0,10],[0,11,1,14],[1,7,2,8],[1,9,1,10],[2,11,3,11],[2,12,3,12],[2,13,4,13],[2,14,4,14],[3,6,4,6],[3,7,4,7],[3,8,4,8]]}
["رقم مسلسل","اسم الموظف او المستخدم ",null,null,"وظيفته","نوع العهده","المرتب","القيمه",null,"قيمه العهده المشموله",null,"قيمه رسم الضمان ",null,null,null,null,null,null,null,null,"شرائح ارباب العهد","معادله الاساسى"]
[null,null,null,null,null,null,null,"التقديريه للعهده",null,"بالضمان حد اقصى"]
[null,null,null,null,null,null,null,null,null,"مائه الف جنيه",null,"المتحصل من ","المتحصل من ","ما تتحمله الحكومه","الجمله"]
[null,null,null,null,null,null,"الاساسى","نقود او اوراق دمغه","ادوات او مهمات","نقود او اوراق","ادوات "]
[null,null,null,null,null,null,null,null,null," دمغه 100 %","او مهمات 100%","الموظف","الموظف"]
[1,null,null,null,"كات اول","اثاث",471.28,650,null,{"$f":"IF(H6>=100000,100000,IF(H6<100000,H6))","v":650},null,{"$f":"IF(M6<1,CEILING(M6,1),IF(M6>1,M6))","v":1},{"$f":"IF((U6-V6<=0),U6,IF((U6-V6>=0),V6))","v":0.39},{"$f":"U6-M6","v":0},{"$f":"SUM(L6+N6)","v":1},null,null,null,null,null,{"$f":"IF(J6<=10000,J6*6/10000,IF(J6<=40000,6+(J6-10000)*12/10000,IF(J6<=100000,54+(J6-50000)*24/10000)))","v":0.39},{"$f":"G6*12*5/1000","v":28.276799999999998}]
[2,null,null,null,"رئيس مكتب","اثاث + كمبيوتر ومشتمالته",495.83,100000,null,{"$f":"IF(H7>=100000,100000,IF(H7<100000,H7))","v":100000},null,{"$f":"IF(M7<1,CEILING(M7,1),IF(M7>1,M7))","v":29.7498},{"$f":"IF((U7-V7<=0),U7,IF((U7-V7>=0),V7))","v":29.7498},{"$f":"U7-M7","v":144.25020000000001},{"$f":"SUM(L7+N7)","v":174},null,null,null,null,null,{"$f":"IF(J7<=10000,J7*6/10000,IF(J7<=40000,6+(J7-10000)*12/10000,IF(J7<=100000,54+(J7-50000)*24/10000)))","v":174},{"$f":"G7*12*5/1000","v":29.7498}]
[3,null,null,null,"باحث ثانى","اثاث",291.31,450,null,450,null,1,0.27,0,1,null,null,null,null,null,0.27,17.478600000000004]
[4,null,null,null,"باحث اول","اثاث + كمبيوتر ومشتمالته",356.96,100000,null,100000,null,21.4176,21.4176,152.58240000000001,174,null,null,null,null,null,174,21.4176]
[5,null,null,null,"رئيس مكتب","اثاث + كمبيوتر ومشتمالته",504.01,100000,null,100000,null,30.240599999999997,30.240599999999997,143.7594,174,null,null,null,null,null,174,30.240599999999997]
[6,null,null,null,"باحث اول","اثاث",356.96,500,null,500,null,1,0.3,0,1,null,null,null,null,null,0.3,21.4176]
[7,null,null,null,"رئيس مكتب","اثاث",403.96,1200,null,1200,null,1,0.72,0,1,null,null,null,null,null,0.72,24.237599999999997]
[8,null,null,null,"رئيس مكتب","اثاث",250,600,null,600,null,1,0.36,0,1,null,null,null,null,null,0.36,15]
[9,null,null,null,"رئيس مكتب","اثاث",357.36,900,null,900,null,1,0.54,0,1,null,null,null,null,null,0.54,21.441599999999998]
[10,null,null,null,"رئيس مكتب","اثاث",361.36,500,null,500,null,1,0.3,0,1,null,null,null,null,null,0.3,21.6816]
[11,null,null,null,"رئيس مكتب","اثاث",403.36,700,null,700,null,1,0.42,0,1,null,null,null,null,null,0.42,24.201599999999999]
[12,null,null,null,"رئيس مكتب","اثاث + كمبيوتر ومشتمالته",531.48,100000,null,100000,null,31.888800000000003,31.888800000000003,142.1112,174,null,null,null,null,null,174,31.888800000000003]
[13,null,null,null,"كاتب اول","اثاث",468.08,650,null,650,null,1,0.39,0,1,null,null,null,null,null,0.39,28.084799999999998]
[14,null,null,null,"كاتب","اثاث",476.01,2630,null,2630,null,1.5780000000000001,1.5780000000000001,0,1.5780000000000001,null,null,null,null,null,1.5780000000000001,28.560599999999997]
[15,null,null,null,"كاتب اول","اثاث",525.76,10000,null,10000,null,6,6,0,6,null,null,null,null,null,6,31.5456]
[16,null,null,null,"رئيس مكتب","اثاث",403.36,3000,null,3000,null,1.8,1.8,0,1.8,null,null,null,null,null,1.8,24.201599999999999]
[null,"الاجمالى ",null,null,null,null,null,null,null,{"$f":"ROUNDDOWN(SUM(J6:K21),2)","v":421780},null,{"$f":"SUM(L6:L21)","v":131.6748},{"$f":"SUM(M6:M21)","v":126.3648},582.70319999999992,714.37799999999993,null,null,null,null,null,false,0]
[null,null,null,null,null,null,null,null,null,null,null,null,"مديراداره الموارد البشريه",null,null,null,null,null,null,null,0,0]
[null,null,null,null,null,null,null,null,null,null,null,null,null,null,null,null,null,null,null,null,0,0]
[null,null,null,null,null,null,null,null,null,null,null,null,null,null,null,null,null,null,null,null,0,0]
[null,null,null,null,null,null,null,null,null,null,null,null,null,null,null,null,null,null,null,null,0,0]
[null,null,null,null,null,null,null,"اقرار",null,null,null,null,null,null,null,null,null,null,null,null,0,0]
["جمله رسوم الضمان الوارده فى هذا البيان وتبلغ",null,null,null,null,null,null,{"$f":"O22","v":714.37799999999993},"جنيها",{"$f":"kh_TextNum(H28,,\"جنيه\",,\"قرشا\")","v":"فقط سبعمائة وأربعة عشر جنيهاً  و (38) قرشا"},null,null,null,null,null,null,null,null,null,null,false,0]
["سددت لصندوق التامين الحكومى لضمانات ارباب العهد عن المده من يوليو2022 الى يونيه  2023     ",null,null,null,null,null,null,null,null,null,null,null,null,null,null,null,null,null,null,null,0,0]
[null,null,null,null,null,null,null,null,null,null,null,null,null,null,null,null,null,null,null,null,0,0]
["تحريرا فى :           سنه 2022",null,null,null,null,null,null,null,null,null,null,null,null,null,null,null,null,null,null,null,0,0]
[null,null,null,null,null,null,null,null,null,null,"مدير الحسابات ",null,null,null,null,null,null,null,null,null,0,0]
[null,null,null,null,null,null,null,null,null,null,null,null,null,null,null,null,null,null,null,null,0,0]
[null,null,null,null,null,null,null,null,null,null,null,null,null,"        يعتمد ",null,null,null,null,null,null,0,0]
[null,null,null,null,null,null,null,null,null,null,null,null,null,"      مدير المديريه",null,null,null,null,null,null,0,0]
[null,null,null,null,null,null,null,null,null,null,null,null,null,null,null,null,null,null,null,null,0,0]
[null,null,null,null,null,null,null,null,null,null,null,null,null,null,null,null,null,null,null,null,0,0]
[null,null,null,null,null,null,null,null,null,null,null,null,null,null,null,null,null,null,null,null,0,0]
[null,null,null,null,null,null,null,null,null,null,null,null,null,null,null,null,null,null,null,null,0,0]
[null,null,null,null,null,null,null,null,null,null,null,null,null,null,null,null,null,null,null,null,{"$f":"IF(J40<=10000,J40*6/10000,IF(J40<=40000,6+(J40-10000)*12/10000,IF(J40<=100000,54+(J40-50000)*24/10000)))","v":0},{"$f":"G40*12*5/1000","v":0}]
[null,null,null,null,null,null,null,null,null,null,null,null,null,null,null,null,null,null,null,null,0,0]
[null,null,null,null,null,null,null,null,null,null,null,null,null,null,null,null,null,null,null,null,{"$f":"IF(J42<=10000,J42*6/10000,IF(J42<=40000,6+(J42-10000)*12/10000,IF(J42<=100000,54+(J42-50000)*24/10000)))","v":0},{"$f":"G42*12*5/1000","v":0}]
[null,null,null,null,null,null,null,null,null,null,null,null,null,null,null,null,null,null,null,null,{"$f":"IF(J43<=10000,J43*6/10000,IF(J43<=40000,6+(J43-10000)*12/10000,IF(J43<=100000,54+(J43-50000)*24/10000)))","v":0},{"$f":"G43*12*5/1000","v":0}]
[null,null,null,null,null,null,null,null,null,null,null,null,null,null,null,null,null,null,null,null,{"$f":"IF(J44<=10000,J44*6/10000,IF(J44<=40000,6+(J44-10000)*12/10000,IF(J44<=100000,54+(J44-50000)*24/10000)))","v":0},{"$f":"G44*12*5/1000","v":0}]
[null,null,null,null,null,null,null,null,null,null,null,null,null,null,null,null,null,null,null,null,{"$f":"IF(J45<=10000,J45*6/10000,IF(J45<=40000,6+(J45-10000)*12/10000,IF(J45<=100000,54+(J45-50000)*24/10000)))","v":0},{"$f":"G45*12*5/1000","v":0}]
[null,null,null,null,null,null,null,null,null,null,null,null,null,null,null,null,null,null,null,null,0,0]
[null,null,null,null,null,null,null,null,null,null,null,null,null,null,null,null,null,null,null,null,0,0]
[]
[null,null,null,null,null,null,null,null,null,null,null,null,null,null,null,null,null,null,null,null,{"$f":"IF(J49<=10000,J49*6/10000,IF(J49<=40000,6+(J49-10000)*12/10000,IF(J49<=100000,54+(J49-50000)*24/10000)))","v":0},{"$f":"G49*12*5/1000","v":0}]
[]
[null,null,null,null,null,null,null,null,null,null,null,null,null,null,null,null,null,null,null,null,0,0]
[null,null,null,null,null,null,null,null,null,null,null,null,null,null,null,null,null,null,null,null,{"$f":"IF(J52<=10000,J52*6/10000,IF(J52<=40000,6+(J52-10000)*12/10000,IF(J52<=100000,54+(J52-50000)*24/10000)))","v":0},{"$f":"G52*12*5/1000","v":0}]
[null,null,null,null,null,null,null,null,null,null,null,null,null,null,null,null,null,null,null,null,0,0]
[null,null,null,null,null,null,null,null,null,null,null,null,null,null,null,null,null,null,null,null,0,0]
["رقم مسلسل","اسم الموظف او المستخدم ",null,null,"وظيفته","نوع العهده","المرتب","القيمه",null,"قيمه العهده المشموله",null,"قيمه رسم الضمان ",null,null,null,null,null,null,null,null,"شرائح ارباب العهد","معادله الاساسى"]
[null,null,null,null,null,null,null,"التقديريه للعهده",null,"بالضمان حد اقصى"]
[null,null,null,null,null,null,null,null,null,"مائه الف جنيه",null,"المتحصل من ","المتحصل من ","ما تتحمله الحكومه","الجمله"]
[null,null,null,null,null,null,"الاساسى","نقود او اوراق دمغه","ادوات او مهمات","نقود او اوراق","ادوات "]
[null,null,null,null,null,null,null,null,null," دمغه 100 %","او مهمات 100%","الموظف","الموظف"]
[192,null,null,null,"باحث","كمبيوتر ",249,3000,null,{"$f":"IF(H60>=100000,100000,IF(H60<100000,H60))","v":3000},null,{"$f":"IF(M60<1,CEILING(M60,1),IF(M60>1,M60))","v":1.8},{"$f":"IF((U60-V60<=0),U60,IF((U60-V60>=0),V60))","v":1.8},{"$f":"U60-M60","v":0},{"$f":"SUM(L60+N60)","v":1.8},null,null,null,null,null,{"$f":"IF(J60<=10000,J60*6/10000,IF(J60<=40000,6+(J60-10000)*12/10000,IF(J60<=100000,54+(J60-50000)*24/10000)))","v":1.8},{"$f":"G60*12*5/1000","v":14.94}]
[193,null,null,null,"رئيس قسم","كمبيوتر + طابعه",524.72,2500,null,{"$f":"IF(H61>=100000,100000,IF(H61<100000,H61))","v":2500},null,{"$f":"IF(M61<1,CEILING(M61,1),IF(M61>1,M61))","v":1.5},{"$f":"IF((U61-V61<=0),U61,IF((U61-V61>=0),V61))","v":1.5},{"$f":"U61-M61","v":0},{"$f":"SUM(L61+N61)","v":1.5},null,null,null,null,null,{"$f":"IF(J61<=10000,J61*6/10000,IF(J61<=40000,6+(J61-10000)*12/10000,IF(J61<=100000,54+(J61-50000)*24/10000)))","v":1.5},{"$f":"G61*12*5/1000","v":31.4832}]
[194,null,null,null,"كبير","2 كمبيوتر + 2 طابعه",530.37,8000,null,8000,null,4.8,4.8,0,4.8,null,null,null,null,null,4.8,31.822200000000006]
[195,null,null,null,"باحث","2 كمبيوتر+ 3 طابعه+ مكنه تصوير+لاب توب",533.74,27000,null,27000,null,26.4,26.4,0,26.4,null,null,null,null,null,26.4,32.0244]
[196,null,null,null,"باحث","طابعه + كمبيوتر",304.22000000000003,3000,null,3000,null,1.8,1.8,0,1.8,null,null,null,null,null,1.8,18.2532]
[197,null,null,null,"رئيس قسم","كمبيوتر + طابعه+لاب توب",356.96,19000,null,19000,null,16.8,16.8,0,16.8,null,null,null,null,null,16.8,21.4176]
[198,null,null,null,"رئيس قسم","كمبيوتر + طابعه",258,2500,null,2500,null,1.5,1.5,0,1.5,null,null,null,null,null,1.5,15.48]
[199,null,null,null,"مدير اداره","2 كمبيوتر + طابعه",356.96,5000,null,5000,null,3,3,0,3,null,null,null,null,null,3,21.4176]
[200,null,null,null,"رئيس قسم","كمبيوتر",543.61,3000,null,3000,null,1.8,1.8,0,1.8,null,null,null,null,null,1.8,32.616599999999998]
[201,null,null,null,"مكتبى ","كمبيوتر + طابعه",412.41,3000,null,3000,null,1.8,1.8,0,1.8,null,null,null,null,null,1.8,24.744599999999998]
[202,null,null,null,"رئيس قسم","سويتش تليفون +2 فاكس ",366.46,22000,null,22000,null,20.399999999999999,20.399999999999999,0,20.399999999999999,null,null,null,null,null,20.399999999999999,21.987599999999997]
[203,null,null,null,"باحث","2 كمبيوتر +طابعه",246,12000,null,12000,null,8.4,8.4,0,8.4,null,null,null,null,null,8.4,14.76]
[204,null,null,null,"سائق","سياره",297.12,325000,null,100000,null,17.827200000000001,17.827200000000001,156.1728,174,null,null,null,null,null,174,17.827200000000001]
[205,null,null,null,"باحث","2سياره",356.96,370000,null,100000,null,21.4176,21.4176,152.58240000000001,174,null,null,null,null,null,174,21.4176]
[206,null,null,null,"باحث","كمبيوتر",382.76,3000,null,3000,null,1.8,1.8,0,1.8,null,null,null,null,null,1.8,22.965599999999998]
[207,null,null,null,"رئيس قسم ","كمبيوتر + طابعه ",344.96,5000,null,5000,null,3,3,0,3,null,null,null,null,null,3,20.697599999999998]
[null,"الاجمالى ",null,null,null,null,null,null,null,{"$f":"ROUNDDOWN(SUM(J60:K75),2)","v":318000},null,{"$f":"SUM(L60:L75)","v":134.04480000000001},{"$f":"SUM(M60:M75)","v":134.04480000000001},308.7552,442.8,null,null,null,null,null,false,0]
[null,null,null,null,null,null,null,null,null,null,null,null,"مديراداره الموارد البشريه",null,null,null,null,null,null,null,0,0]
[null,null,null,null,null,null,null,null,null,null,null,null,null,null,null,null,null,null,null,null,0,0]
[null,null,null,null,null,null,null,null,null,null,null,null,null,null,null,null,null,null,null,null,0,0]
[null,null,null,null,null,null,null,null,null,null,null,null,null,null,null,null,null,null,null,null,0,0]
[null,null,null,null,null,null,null,"اقرار",null,null,null,null,null,null,null,null,null,null,null,null,0,0]
["جمله رسوم الضمان الوارده فى هذا البيان وتبلغ",null,null,null,null,null,null,{"$f":"O76","v":442.8},"جنيها",{"$f":"kh_TextNum(H82,,\"جنيه\",,\"قرشا\")","v":"فقط أربعمائة واثنان وأربعون جنيهاً  و (80) قرشا"},null,null,null,null,null,null,null,null,null,null,false,0]
["سددت لصندوق التامين الحكومى لضمانات ارباب العهد عن المده من يوليو2022 الى يونيه  2023     ",null,null,null,null,null,null,null,null,null,null,null,null,null,null,null,null,null,null,null,0,0]
[null,null,null,null,null,null,null,null,null,null,null,null,null,null,null,null,null,null,null,null,0,0]
["تحريرا فى :           سنه 2022",null,null,null,null,null,null,null,null,null,null,null,null,null,null,null,null,null,null,null,0,0]
[null,null,null,null,null,null,null,null,null,null,"مدير الحسابات ",null,null,null,null,null,null,null,null,null,0,0]
[null,null,null,null,null,null,null,null,null,null,null,null,null,null,null,null,null,null,null,null,0,0]
[null,null,null,null,null,null,null,null,null,null,null,null,null,"        يعتمد ",null,null,null,null,null,null,0,0]
[null,null,null,null,null,null,null,null,null,null,null,null,null,"      مدير المديريه",null,null,null,null,null,null,0,0]
[null,null,null,null,null,null,null,null,null,null,null,null,null,null,null,null,null,null,null,null,0,0]
[null,null,null,null,null,null,null,null,null,null,null,null,null,null,null,null,null,null,null,null,0,0]
[null,null,null,null,null,null,null,null,null,null,null,null,null,null,null,null,null,null,null,null,0,0]
[]
[]
["رقم مسلسل","اسم الموظف او المستخدم ",null,null,"وظيفته","نوع العهده","المرتب","القيمه",null,"قيمه العهده المشموله",null,"قيمه رسم الضمان ",null,null,null,null,null,null,null,null,"شرائح ارباب العهد","معادله الاساسى"]
[null,null,null,null,null,null,null,"التقديريه للعهده",null,"بالضمان حد اقصى"]
[null,null,null,null,null,null,null,null,null,"مائه الف جنيه",null,"المتحصل من ","المتحصل من ","ما تتحمله الحكومه","الجمله"]
[null,null,null,null,null,null,"الاساسى","نقود او اوراق دمغه","ادوات او مهمات","نقود او اوراق","ادوات "]
[null,null,null,null,null,null,null,null,null," دمغه 100 %","او مهمات 100%","الموظف","الموظف"]
[208,null,null,null,"سائق","2 سياره ",297.32,160000,null,{"$f":"IF(H100>=100000,100000,IF(H100<100000,H100))","v":100000},null,{"$f":"IF(M100<1,CEILING(M100,1),IF(M100>1,M100))","v":17.839200000000002},{"$f":"IF((U100-V100<=0),U100,IF((U100-V100>=0),V100))","v":17.839200000000002},{"$f":"U100-M100","v":156.16079999999999},{"$f":"SUM(L100+N100)","v":174},null,null,null,null,null,{"$f":"IF(J100<=10000,J100*6/10000,IF(J100<=40000,6+(J100-10000)*12/10000,IF(J100<=100000,54+(J100-50000)*24/10000)))","v":174},{"$f":"G100*12*5/1000","v":17.839200000000002}]
[209,null,null,null,"مكتبى","كمبيوتر + طابعه",414.81,5000,null,{"$f":"IF(H101>=100000,100000,IF(H101<100000,H101))","v":5000},null,{"$f":"IF(M101<1,CEILING(M101,1),IF(M101>1,M101))","v":3},{"$f":"IF((U101-V101<=0),U101,IF((U101-V101>=0),V101))","v":3},{"$f":"U101-M101","v":0},{"$f":"SUM(L101+N101)","v":3},null,null,null,null,null,{"$f":"IF(J101<=10000,J101*6/10000,IF(J101<=40000,6+(J101-10000)*12/10000,IF(J101<=100000,54+(J101-50000)*24/10000)))","v":3},{"$f":"G101*12*5/1000","v":24.888600000000004}]
[210,null,null,null,"خدمات معاونه","اثاث",433.06,330000,null,{"$f":"IF(H102>=100000,100000,IF(H102<100000,H102))","v":100000},null,{"$f":"IF(M102<1,CEILING(M102,1),IF(M102>1,M102))","v":25.983600000000003},{"$f":"IF((U102-V102<=0),U102,IF((U102-V102>=0),V102))","v":25.983600000000003},{"$f":"U102-M102","v":148.0164},{"$f":"SUM(L102+N102)","v":174},null,null,null,null,null,{"$f":"IF(J102<=10000,J102*6/10000,IF(J102<=40000,6+(J102-10000)*12/10000,IF(J102<=100000,54+(J102-50000)*24/10000)))","v":174},{"$f":"G102*12*5/1000","v":25.983600000000003}]
[211,null,null,null,"خدمات معاونه","اثاث",441.79,350000,null,100000,null,26.507400000000001,26.507400000000001,147.49260000000001,174,null,null,null,null,null,174,26.507400000000001]
[212,null,null,null,"سويتش","سنترال المديريه ",342.54,2000,null,2000,null,1.2,1.2,0,1.2,null,null,null,null,null,1.2,20.552400000000002]
[213,null,null,null,"باحث","كمبيوتر + طابعه ",249,6000,null,6000,null,3.6,3.6,0,3.6,null,null,null,null,null,3.6,14.94]
[214,null,null,null,"باحث","لاب توب",246,15000,null,15000,null,12,12,0,12,null,null,null,null,null,12,14.76]
[215,null,null,null,"حرفى ","مسئول الجراج",331.49,80000,null,80000,null,19.889400000000002,19.889400000000002,106.11060000000001,126,null,null,null,null,null,126,19.889400000000002]
[216,null,null,null,"باحث","لاب توب",249,10000,null,{"$f":"IF(H108>=100000,100000,IF(H108<100000,H108))","v":10000},null,{"$f":"IF(M108<1,CEILING(M108,1),IF(M108>1,M108))","v":6},{"$f":"IF((U108-V108<=0),U108,IF((U108-V108>=0),V108))","v":6},{"$f":"U108-M108","v":0},{"$f":"SUM(L108+N108)","v":6},null,null,null,null,null,{"$f":"IF(J108<=10000,J108*6/10000,IF(J108<=40000,6+(J108-10000)*12/10000,IF(J108<=100000,54+(J108-50000)*24/10000)))","v":6},{"$f":"G108*12*5/1000","v":14.94}]
[217,null,null,null,"كاتب اول","اثاث + ختم الادره",431.6,6000,null,6000,null,3.6,3.6,0,3.6,null,null,null,null,null,3.6,25.896000000000004]
[218,null,null,null,"كاتب اول","اثاث + كمبيوتر",513.1,2000,null,2000,null,1.2,1.2,0,1.2,null,null,null,null,null,1.2,30.786000000000005]
[219,null,null,null,"كاتب اول","اثاث + كمبيوتر",430,2000,null,2000,null,1.2,1.2,0,1.2,null,null,null,null,null,1.2,25.8]
[220,null,null,null,"كاتب اول","اثاث + كمبيوتر",431.6,2000,null,2000,null,1.2,1.2,0,1.2,null,null,null,null,null,1.2,25.896000000000004]
[221,null,null,null,"سائق","سياره",262.32,90000,null,90000,null,15.7392,15.7392,134.26079999999999,150,null,null,null,null,null,150,15.7392]
[222,null,null,null,"كاتب اول","اثاث",408.57,200,null,200,null,1,0.12,0,1,null,null,null,null,null,0.12,24.514200000000002]
[223,null,null,null,"فنى اول","اثاث",415.21,200,null,200,null,1,0.12,0,1,null,null,null,null,null,0.12,24.912599999999998]
[224,null,null,null,"خدمات معاونه","اثاث",198.75,200,null,200,null,1,0.12,0,1,null,null,null,null,null,0.12,11.925000000000001]
[225,null,null,null,"رئيس مكتب","اثاث",246,200,null,200,null,1,0.12,0,1,null,null,null,null,null,0.12,14.76]
[null,"الاجمالى ",null,null,null,null,null,null,null,{"$f":"ROUNDDOWN(SUM(J100:K117),2)","v":520800},null,{"$f":"SUM(L100:L117)","v":142.9588},{"$f":"SUM(M100:M117)","v":139.43880000000001},692.0412,835.00000000000023,null,null,null,null,null,false,0]
[null,null,null,null,null,null,null,null,null,null,null,null,"مديراداره الموارد البشريه",null,null,null,null,null,null,null,0,0]
[null,null,null,null,null,null,null,null,null,null,null,null,null,null,null,null,null,null,null,null,0,0]
[null,null,null,null,null,null,null,null,null,null,null,null,null,null,null,null,null,null,null,null,0,0]
[null,null,null,null,null,null,null,null,null,null,null,null,null,null,null,null,null,null,null,null,0,0]
[null,null,null,null,null,null,null,"اقرار",null,null,null,null,null,null,null,null,null,null,null,null,0,0]
["جمله رسوم الضمان الوارده فى هذا البيان وتبلغ",null,null,null,null,null,null,{"$f":"O118","v":835.00000000000023},"جنيها",{"$f":"kh_TextNum(H124,,\"جنيه\",,\"قرشا\")","v":"فقط ثمانمائة وخمسة وثلاثون جنيه"},null,null,null,null,null,null,null,null,null,null,false,0]
["سددت لصندوق التامين الحكومى لضمانات ارباب العهد عن المده من يوليو2022 الى يونيه  2023     ",null,null,null,null,null,null,null,null,null,null,null,null,null,null,null,null,null,null,null,0,0]
[null,null,null,null,null,null,null,null,null,null,null,null,null,null,null,null,null,null,null,null,0,0]
["تحريرا فى :           سنه 2022",null,null,null,null,null,null,null,null,null,null,null,null,null,null,null,null,null,null,null,0,0]
[null,null,null,null,null,null,null,null,null,null,"مدير الحسابات ",null,null,null,null,null,null,null,null,null,0,0]
[null,null,null,null,null,null,null,null,null,null,null,null,null,null,null,null,null,null,null,null,0,0]
[null,null,null,null,null,null,null,null,null,null,null,null,null,"        يعتمد ",null,null,null,null,null,null,0,0]
[null,null,null,null,null,null,null,null,null,null,null,null,null,"      مدير المديريه",null,null,null,null,null,null,0,0]
[null,null,null,null,null,null,null,null,null,null,null,null,null,null,null,null,null,null,null,null,0,0]
["رقم مسلسل","اسم الموظف او المستخدم ",null,null,"وظيفته","نوع العهده","المرتب","القيمه",null,"قيمه العهده المشموله",null,"قيمه رسم الضمان ",null,null,null,null,null,null,null,null,"شرائح ارباب العهد","معادله الاساسى"]
[null,null,null,null,null,null,null,"التقديريه للعهده",null,"بالضمان حد اقصى"]
[null,null,null,null,null,null,null,null,null,"مائه الف جنيه",null,"المتحصل من ","المتحصل من ","ما تتحمله الحكومه","الجمله"]
[null,null,null,null,null,null,"الاساسى","نقود او اوراق دمغه","ادوات او مهمات","نقود او اوراق","ادوات "]
[null,null,null,null,null,null,null,null,null," دمغه 100 %","او مهمات 100%","الموظف","الموظف"]
[226,null,null,null,"فنى اول","اثاث",436.74,500,null,{"$f":"IF(H138>=100000,100000,IF(H138<100000,H138))","v":500},null,{"$f":"IF(M138<1,CEILING(M138,1),IF(M138>1,M138))","v":1},{"$f":"IF((U138-V138<=0),U138,IF((U138-V138>=0),V138))","v":0.3},{"$f":"U138-M138","v":0},{"$f":"SUM(L138+N138)","v":1},null,null,null,null,null,{"$f":"IF(J138<=10000,J138*6/10000,IF(J138<=40000,6+(J138-10000)*12/10000,IF(J138<=100000,54+(J138-50000)*24/10000)))","v":0.3},{"$f":"G138*12*5/1000","v":26.2044}]
[227,null,null,null,"كاتب اول","اثاث",461.77,200,null,{"$f":"IF(H139>=100000,100000,IF(H139<100000,H139))","v":200},null,{"$f":"IF(M139<1,CEILING(M139,1),IF(M139>1,M139))","v":1},{"$f":"IF((U139-V139<=0),U139,IF((U139-V139>=0),V139))","v":0.12},{"$f":"U139-M139","v":0},{"$f":"SUM(L139+N139)","v":1},null,null,null,null,null,{"$f":"IF(J139<=10000,J139*6/10000,IF(J139<=40000,6+(J139-10000)*12/10000,IF(J139<=100000,54+(J139-50000)*24/10000)))","v":0.12},{"$f":"G139*12*5/1000","v":27.706199999999995}]
[228,null,null,null,"كاتب اول","اثاث",522.04999999999995,400,null,400,null,1,0.24,0,1,null,null,null,null,null,0.24,31.322999999999997]
[229,null,null,null,"فنى اول","اثاث",590.07000000000005,200,null,200,null,1,0.12,0,1,null,null,null,null,null,0.12,35.404199999999996]
[230,null,null,null,"كاتب اول","اثاث ",548.28,900,null,900,null,1,0.54,0,1,null,null,null,null,null,0.54,32.896799999999999]
[231,null,null,null,null,null,null,null,null,0,null,0,0,0,0,null,null,null,null,null,0,0]
[232,null,null,null,null,null,null,null,null,0,null,0,0,0,0,null,null,null,null,null,0,0]
[233,null,null,null,null,null,null,null,null,0,null,0,0,0,0,null,null,null,null,null,0,0]
[234,null,null,null,null,null,null,null,null,0,null,0,0,0,0,null,null,null,null,null,0,0]
[235,null,null,null,null,null,null,null,null,0,null,0,0,0,0,null,null,null,null,null,0,0]
[236,null,null,null,null,null,null,null,null,0,null,0,0,0,0,null,null,null,null,null,0,0]
[237,null,null,null,null,null,null,null,null,0,null,0,0,0,0,null,null,null,null,null,0,0]
[238,null,null,null,null,null,null,null,null,0,null,0,0,0,0,null,null,null,null,null,0,0]
[239,null,null,null,null,null,null,null,null,0,null,0,0,0,0,null,null,null,null,null,0,0]
[240,null,null,null,null,null,null,null,null,0,null,0,0,0,0,null,null,null,null,null,0,0]
[null,"الاجمالى ",null,null,null,null,null,null,null,{"$f":"ROUNDDOWN(SUM(J138:K152),2)","v":2200},null,{"$f":"SUM(L138:L152)","v":5},{"$f":"SUM(M138:M152)","v":1.3199999999999998},{"$f":"SUM(N138:N152)","v":0},{"$f":"SUM(O138:O152)","v":5},null,null,null,null,null,1.32,0]
[null,null,null,null,null,null,null,null,null,null,null,null,"مديراداره الموارد البشريه",null,null,null,null,null,null,null,0,0]
[null,null,null,null,null,null,null,null,null,null,null,null,null,null,null,null,null,null,null,null,0,0]
[null,null,null,null,null,null,null,null,null,null,null,null,null,null,null,null,null,null,null,null,0,0]
[null,null,null,null,null,null,null,null,null,null,null,null,null,null,null,null,null,null,null,null,0,0]
[null,null,null,null,null,null,null,"اقرار",null,null,null,null,null,null,null,null,null,null,null,null,0,0]
["جمله رسوم الضمان الوارده فى هذا البيان وتبلغ",null,null,null,null,null,null,{"$f":"O153","v":5},"جنيها",{"$f":"kh_TextNum(H159,,\"جنيه\",,\"قرشا\")","v":"فقط خمسة جنيه"},null,null,null,null,null,null,null,null,null,null,false,0]
["سددت لصندوق التامين الحكومى لضمانات ارباب العهد عن المده من يوليو2022 الى يونيه  2023     ",null,null,null,null,null,null,null,null,null,null,null,null,null,null,null,null,null,null,null,0,0]
[null,null,null,null,null,null,null,null,null,null,null,null,null,null,null,null,null,null,null,null,0,0]
["تحريرا فى :           سنه 2022",null,null,null,null,null,null,null,null,null,null,null,null,null,null,null,null,null,null,null,0,0]
[null,null,null,null,null,null,null,null,null,null,"مدير الحسابات ",null,null,null,null,null,null,null,null,null,0,0]
[null,null,null,null,null,null,null,null,null,null,null,null,null,null,null,null,null,null,null,null,0,0]
[null,null,null,null,null,null,null,null,null,null,null,null,null,"        يعتمد ",null,null,null,null,null,null,0,0]
[null,null,null,null,null,null,null,null,null,null,null,null,null,"      مدير المديريه",null,null,null,null,null,null,0,0]
[null,null,null,null,null,null,null,null,null,null,null,null,null,null,null,null,null,null,null,null,0,0]
[null,null,null,null,null,null,null,null,null,null,null,null,null,null,null,null,null,null,null,null,0,0]
[null,null,null,null,null,null,null,null,null,null,null,null,null,null,null,null,null,null,null,null,0,0]
[null,null,null,null,null,null,null,null,null,null,null,null,null,null,null,null,null,null,null,null,0,0]
[null,null,null,null,null,null,null,null,null,null,null,null,null,null,null,null,null,null,null,null,0,0]
[null,null,null,null,null,null,null,null,null,null,null,null,null,null,null,null,null,null,null,null,0,0]
[null,null,null,null,null,null,null,null,null,null,null,null,null,null,null,null,null,null,null,null,0,0]
[null,null,null,null,null,null,null,null,null,null,null,null,null,null,null,null,null,null,null,null,0,0]
[null,null,null,null,null,null,null,null,null,null,null,null,null,null,null,null,null,null,null,null,0,0]
[null,null,null,null,null,null,null,null,null,null,null,null,null,null,null,null,null,null,null,null,0,0]
[null,null,null,null,null,null,null,null,null,null,null,null,null,null,null,null,null,null,null,null,0,0]
[null,null,null,null,null,null,null,null,null,null,null,null,null,null,null,null,null,null,null,null,0,0]
[null,null,null,null,null,null,null,null,null,null,null,null,null,null,null,null,null,null,null,null,0,0]
[null,null,null,null,null,null,null,null,null,null,null,null,null,null,null,null,null,null,null,null,0,0]
[null,null,null,null,null,null,null,null,null,null,null,null,null,null,null,null,null,null,null,null,0,0]
[null,null,null,null,null,null,null,null,null,null,null,null,null,null,null,null,null,null,null,null,0,0]
[null,null,null,null,null,null,null,null,null,null,null,null,null,null,null,null,null,null,null,null,0,0]
[null,null,null,null,null,null,null,null,null,null,null,null,null,null,null,null,null,null,null,null,0,0]
[null,null,null,null,null,null,null,null,null,null,null,null,null,null,null,null,null,null,null,null,0,0]
[null,null,null,null,null,null,null,null,null,null,null,null,null,null,null,null,null,null,null,null,0,0]
[null,null,null,null,null,null,null,null,null,null,null,null,null,null,null,null,null,null,null,null,0,0]
[null,null,null,null,null,null,null,null,null,null,null,null,null,null,null,null,null,null,null,null,0,0]
[null,null,null,null,null,null,null,null,null,null,null,null,null,null,null,null,null,null,null,null,0,0]
[null,null,null,null,null,null,null,null,null,null,null,null,null,null,null,null,null,null,null,null,0,0]
[null,null,null,null,null,null,null,null,null,null,null,null,null,null,null,null,null,null,null,null,0,0]
[null,null,null,null,null,null,null,null,null,null,null,null,null,null,null,null,null,null,null,null,0,0]
[null,null,null,null,null,null,null,null,null,null,null,null,null,null,null,null,null,null,null,null,0,0]
[null,null,null,null,null,null,null,null,null,null,null,null,null,null,null,null,null,null,null,null,0,0]
[null,null,null,null,null,null,null,null,null,null,null,null,null,null,null,null,null,null,null,null,0,0]
[null,null,null,null,null,null,null,null,null,null,null,null,null,null,null,null,null,null,null,null,0,0]
[null,null,null,null,null,null,null,null,null,null,null,null,null,null,null,null,null,null,null,null,{"$f":"IF(J197<=10000,J197*6/10000,IF(J197<=40000,6+(J197-10000)*12/10000,IF(J197<=100000,54+(J197-50000)*24/10000)))","v":0},{"$f":"G197*12*5/1000","v":0}]
[null,null,null,null,null,null,null,null,null,null,null,null,null,null,null,null,null,null,null,null,0,0]
[null,null,null,null,null,null,null,null,null,null,null,null,null,null,null,null,null,null,null,null,0,0]
[null,null,null,null,null,null,null,null,null,null,null,null,null,null,null,null,null,null,null,null,0,0]
[null,null,null,null,null,null,null,null,null,null,null,null,null,null,null,null,null,null,null,null,0,0]
[null,null,null,null,null,null,null,null,null,null,null,null,null,null,null,null,null,null,null,null,0,0]
[null,null,null,null,null,null,null,null,null,null,null,null,null,null,null,null,null,null,null,null,0,0]
[null,null,null,null,null,null,null,null,null,null,null,null,null,null,null,null,null,null,null,null,0,0]
[null,null,null,null,null,null,null,null,null,null,null,null,null,null,null,null,null,null,null,null,0,0]
[null,null,null,null,null,null,null,null,null,null,null,null,null,null,null,null,null,null,null,null,0,0]
[null,null,null,null,null,null,null,null,null,null,null,null,null,null,null,null,null,null,null,null,0,0]
[null,null,null,null,null,null,null,null,null,null,null,null,null,null,null,null,null,null,null,null,0,0]
[null,null,null,null,null,null,null,null,null,null,null,null,null,null,null,null,null,null,null,null,0,0]
[null,null,null,null,null,null,null,null,null,null,null,null,null,null,null,null,null,null,null,null,0,0]
[null,null,null,null,null,null,null,null,null,null,null,null,null,null,null,null,null,null,null,null,0,0]
[null,null,null,null,null,null,null,null,null,null,null,null,null,null,null,null,null,null,null,null,0,0]
[null,null,null,null,null,null,null,null,null,null,null,null,null,null,null,null,null,null,null,null,0,0]
[null,null,null,null,null,null,null,null,null,null,null,null,null,null,null,null,null,null,null,null,0,0]
[null,null,null,null,null,null,null,null,null,null,null,null,null,null,null,null,null,null,null,null,0,0]
[null,null,null,null,null,null,null,null,null,null,null,null,null,null,null,null,null,null,null,null,0,0]
[null,null,null,null,null,null,null,null,null,null,null,null,null,null,null,null,null,null,null,null,0,0]
[null,null,null,null,null,null,null,null,null,null,null,null,null,null,null,null,null,null,null,null,0,0]
[null,null,null,null,null,null,null,null,null,null,null,null,null,null,null,null,null,null,null,null,0,0]
[null,null,null,null,null,null,null,null,null,null,null,null,null,null,null,null,null,null,null,null,0,0]
[null,null,null,null,null,null,null,null,null,null,null,null,null,null,null,null,null,null,null,null,0,0]
[null,null,null,null,null,null,null,null,null,null,null,null,null,null,null,null,null,null,null,null,0,0]
[null,null,null,null,null,null,null,null,null,null,null,null,null,null,null,null,null,null,null,null,0,0]
[null,null,null,null,null,null,null,null,null,null,null,null,null,null,null,null,null,null,null,null,0,0]
[null,null,null,null,null,null,null,null,null,null,null,null,null,null,null,null,null,null,null,null,0,0]
[null,null,null,null,null,null,null,null,null,null,null,null,null,null,null,null,null,null,null,null,0,0]
[null,null,null,null,null,null,null,null,null,null,null,null,null,null,null,null,null,null,null,null,0,0]
[null,null,null,null,null,null,null,null,null,null,null,null,null,null,null,null,null,null,null,null,0,0]
[null,null,null,null,null,null,null,null,null,null,null,null,null,null,null,null,null,null,null,null,0,0]
[null,null,null,null,null,null,null,null,null,null,null,null,null,null,null,null,null,null,null,null,0,0]
[null,null,null,null,null,null,null,null,null,null,null,null,null,null,null,null,null,null,null,null,0,0]
[null,null,null,null,null,null,null,null,null,null,null,null,null,null,null,null,null,null,null,null,0,0]
[null,null,null,null,null,null,null,null,null,null,null,null,null,null,null,null,null,null,null,null,0,0]
[null,null,null,null,null,null,null,null,null,null,null,null,null,null,null,null,null,null,null,null,0,0]
[null,null,null,null,null,null,null,null,null,null,null,null,null,null,null,null,null,null,null,null,0,0]
[null,null,null,null,null,null,null,null,null,null,null,null,null,null,null,null,null,null,null,null,0,0]
[null,null,null,null,null,null,null,null,null,null,null,null,null,null,null,null,null,null,null,null,0,0]
[null,null,null,null,null,null,null,null,null,null,null,null,null,null,null,null,null,null,null,null,0,0]
[null,null,null,null,null,null,null,null,null,null,null,null,null,null,null,null,null,null,null,null,0,0]
[null,null,null,null,null,null,null,null,null,null,null,null,null,null,null,null,null,null,null,null,0,0]
[null,null,null,null,null,null,null,null,null,null,null,null,null,null,null,null,null,null,null,null,0,0]
[null,null,null,null,null,null,null,null,null,null,null,null,null,null,null,null,null,null,null,null,0,0]
[null,null,null,null,null,null,null,null,null,null,null,null,null,null,null,null,null,null,null,null,0,0]
[null,null,null,null,null,null,null,null,null,null,null,null,null,null,null,null,null,null,null,null,0,0]
[null,null,null,null,null,null,null,null,null,null,null,null,null,null,null,null,null,null,null,null,0,0]
[null,null,null,null,null,null,null,null,null,null,null,null,null,null,null,null,null,null,null,null,0,0]
[null,null,null,null,null,null,null,null,null,null,null,null,null,null,null,null,null,null,null,null,0,0]
[null,null,null,null,null,null,null,null,null,null,null,null,null,null,null,null,null,null,null,null,0,0]
[null,null,null,null,null,null,null,null,null,null,null,null,null,null,null,null,null,null,null,null,0,0]
[null,null,null,null,null,null,null,null,null,null,null,null,null,null,null,null,null,null,null,null,0,0]
[null,null,null,null,null,null,null,null,null,null,null,null,null,null,null,null,null,null,null,null,0,0]
[null,null,null,null,null,null,null,null,null,null,null,null,null,null,null,null,null,null,null,null,0,0]
[null,null,null,null,null,null,null,null,null,null,null,null,null,null,null,null,null,null,null,null,0,0]
[null,null,null,null,null,null,null,null,null,null,null,null,null,null,null,null,null,null,null,null,0,0]
[null,null,null,null,null,null,null,null,null,null,null,null,null,null,null,null,null,null,null,null,0,0]
[null,null,null,null,null,null,null,null,null,null,null,null,null,null,null,null,null,null,null,null,0,0]
[null,null,null,null,null,null,null,null,null,null,null,null,null,null,null,null,null,null,null,null,0,0]
[null,null,null,null,null,null,null,null,null,null,null,null,null,null,null,null,null,null,null,null,0,0]
[null,null,null,null,null,null,null,null,null,null,null,null,null,null,null,null,null,null,null,null,0,0]
[null,null,null,null,null,null,null,null,null,null,null,null,null,null,null,null,null,null,null,null,0,0]
[null,null,null,null,null,null,null,null,null,null,null,null,null,null,null,null,null,null,null,null,{"$f":"IF(J261<=10000,J261*6/10000,IF(J261<=40000,6+(J261-10000)*12/10000,IF(J261<=100000,54+(J261-50000)*24/10000)))","v":0},{"$f":"G261*12*5/1000","v":0}]
[null,null,null,null,null,null,null,null,null,null,null,null,null,null,null,null,null,null,null,null,0,0]
[null,null,null,null,null,null,null,null,null,null,null,null,null,null,null,null,null,null,null,null,0,0]
[null,null,null,null,null,null,null,null,null,null,null,null,null,null,null,null,null,null,null,null,0,0]
[null,null,null,null,null,null,null,null,null,null,null,null,null,null,null,null,null,null,null,null,0,0]
[null,null,null,null,null,null,null,null,null,null,null,null,null,null,null,null,null,null,null,null,0,0]
[null,null,null,null,null,null,null,null,null,null,null,null,null,null,null,null,null,null,null,null,0,0]
[null,null,null,null,null,null,null,null,null,null,null,null,null,null,null,null,null,null,null,null,0,0]
[null,null,null,null,null,null,null,null,null,null,null,null,null,null,null,null,null,null,null,null,0,0]
[null,null,null,null,null,null,null,null,null,null,null,null,null,null,null,null,null,null,null,null,0,0]
[null,null,null,null,null,null,null,null,null,null,null,null,null,null,null,null,null,null,null,null,0,0]
[null,null,null,null,null,null,null,null,null,null,null,null,null,null,null,null,null,null,null,null,0,0]
[null,null,null,null,null,null,null,null,null,null,null,null,null,null,null,null,null,null,null,null,0,0]
[null,null,null,null,null,null,null,null,null,null,null,null,null,null,null,null,null,null,null,null,0,0]
[null,null,null,null,null,null,null,null,null,null,null,null,null,null,null,null,null,null,null,null,0,0]
[null,null,null,null,null,null,null,null,null,null,null,null,null,null,null,null,null,null,null,null,0,0]
[null,null,null,null,null,null,null,null,null,null,null,null,null,null,null,null,null,null,null,null,0,0]
[null,null,null,null,null,null,null,null,null,null,null,null,null,null,null,null,null,null,null,null,0,0]
[null,null,null,null,null,null,null,null,null,null,null,null,null,null,null,null,null,null,null,null,0,0]
[null,null,null,null,null,null,null,null,null,null,null,null,null,null,null,null,null,null,null,null,0,0]
[null,null,null,null,null,null,null,null,null,null,null,null,null,null,null,null,null,null,null,null,0,0]
[null,null,null,null,null,null,null,null,null,null,null,null,null,null,null,null,null,null,null,null,0,0]
[null,null,null,null,null,null,null,null,null,null,null,null,null,null,null,null,null,null,null,null,0,0]
[null,null,null,null,null,null,null,null,null,null,null,null,null,null,null,null,null,null,null,null,0,0]
[null,null,null,null,null,null,null,null,null,null,null,null,null,null,null,null,null,null,null,null,0,0]
[null,null,null,null,null,null,null,null,null,null,null,null,null,null,null,null,null,null,null,null,0,0]
[null,null,null,null,null,null,null,null,null,null,null,null,null,null,null,null,null,null,null,null,0,0]
[null,null,null,null,null,null,null,null,null,null,null,null,null,null,null,null,null,null,null,null,0,0]
[null,null,null,null,null,null,null,null,null,null,null,null,null,null,null,null,null,null,null,null,0,0]
[null,null,null,null,null,null,null,null,null,null,null,null,null,null,null,null,null,null,null,null,0,0]
[null,null,null,null,null,null,null,null,null,null,null,null,null,null,null,null,null,null,null,null,0,0]
[null,null,null,null,null,null,null,null,null,null,null,null,null,null,null,null,null,null,null,null,0,0]
[null,null,null,null,null,null,null,null,null,null,null,null,null,null,null,null,null,null,null,null,0,0]
[null,null,null,null,null,null,null,null,null,null,null,null,null,null,null,null,null,null,null,null,0,0]
[null,null,null,null,null,null,null,null,null,null,null,null,null,null,null,null,null,null,null,null,0,0]
[null,null,null,null,null,null,null,null,null,null,null,null,null,null,null,null,null,null,null,null,0,0]
[null,null,null,null,null,null,null,null,null,null,null,null,null,null,null,null,null,null,null,null,0,0]
[null,null,null,null,null,null,null,null,null,null,null,null,null,null,null,null,null,null,null,null,0,0]
[null,null,null,null,null,null,null,null,null,null,null,null,null,null,null,null,null,null,null,null,0,0]
[null,null,null,null,null,null,null,null,null,null,null,null,null,null,null,null,null,null,null,null,0,0]
[null,null,null,null,null,null,null,null,null,null,null,null,null,null,null,null,null,null,null,null,0,0]
[null,null,null,null,null,null,null,null,null,null,null,null,null,null,null,null,null,null,null,null,0,0]
[null,null,null,null,null,null,null,null,null,null,null,null,null,null,null,null,null,null,null,null,0,0]
[null,null,null,null,null,null,null,null,null,null,null,null,null,null,null,null,null,null,null,null,0,0]
[null,null,null,null,null,null,null,null,null,null,null,null,null,null,null,null,null,null,null,null,0,0]
[null,null,null,null,null,null,null,null,null,null,null,null,null,null,null,null,null,null,null,null,0,0]
[null,null,null,null,null,null,null,null,null,null,null,null,null,null,null,null,null,null,null,null,0,0]
[null,null,null,null,null,null,null,null,null,null,null,null,null,null,null,null,null,null,null,null,0,0]
[null,null,null,null,null,null,null,null,null,null,null,null,null,null,null,null,null,null,null,null,0,0]
[null,null,null,null,null,null,null,null,null,null,null,null,null,null,null,null,null,null,null,null,0,0]
[null,null,null,null,null,null,null,null,null,null,null,null,null,null,null,null,null,null,null,null,0,0]
[null,null,null,null,null,null,null,null,null,null,null,null,null,null,null,null,null,null,null,null,0,0]
[null,null,null,null,null,null,null,null,null,null,null,null,null,null,null,null,null,null,null,null,0,0]
[null,null,null,null,null,null,null,null,null,null,null,null,null,null,null,null,null,null,null,null,0,0]
[null,null,null,null,null,null,null,null,null,null,null,null,null,null,null,null,null,null,null,null,0,0]
[null,null,null,null,null,null,null,null,null,null,null,null,null,null,null,null,null,null,null,null,0,0]
[null,null,null,null,null,null,null,null,null,null,null,null,null,null,null,null,null,null,null,null,0,0]
[null,null,null,null,null,null,null,null,null,null,null,null,null,null,null,null,null,null,null,null,0,0]
[null,null,null,null,null,null,null,null,null,null,null,null,null,null,null,null,null,null,null,null,0,0]
[null,null,null,null,null,null,null,null,null,null,null,null,null,null,null,null,null,null,null,null,0,0]
[null,null,null,null,null,null,null,null,null,null,null,null,null,null,null,null,null,null,null,null,0,0]
[null,null,null,null,null,null,null,null,null,null,null,null,null,null,null,null,null,null,null,null,0,0]
[null,null,null,null,null,null,null,null,null,null,null,null,null,null,null,null,null,null,null,null,0,0]
[null,null,null,null,null,null,null,null,null,null,null,null,null,null,null,null,null,null,null,null,0,0]
[null,null,null,null,null,null,null,null,null,null,null,null,null,null,null,null,null,null,null,null,{"$f":"IF(J325<=10000,J325*6/10000,IF(J325<=40000,6+(J325-10000)*12/10000,IF(J325<=100000,54+(J325-50000)*24/10000)))","v":0},{"$f":"G325*12*5/1000","v":0}]
[null,null,null,null,null,null,null,null,null,null,null,null,null,null,null,null,null,null,null,null,0,0]
[null,null,null,null,null,null,null,null,null,null,null,null,null,null,null,null,null,null,null,null,0,0]
[null,null,null,null,null,null,null,null,null,null,null,null,null,null,null,null,null,null,null,null,0,0]
[null,null,null,null,null,null,null,null,null,null,null,null,null,null,null,null,null,null,null,null,0,0]
[null,null,null,null,null,null,null,null,null,null,null,null,null,null,null,null,null,null,null,null,0,0]
[null,null,null,null,null,null,null,null,null,null,null,null,null,null,null,null,null,null,null,null,0,0]
[null,null,null,null,null,null,null,null,null,null,null,null,null,null,null,null,null,null,null,null,0,0]
[null,null,null,null,null,null,null,null,null,null,null,null,null,null,null,null,null,null,null,null,0,0]
[null,null,null,null,null,null,null,null,null,null,null,null,null,null,null,null,null,null,null,null,0,0]
[null,null,null,null,null,null,null,null,null,null,null,null,null,null,null,null,null,null,null,null,0,0]
[null,null,null,null,null,null,null,null,null,null,null,null,null,null,null,null,null,null,null,null,0,0]
[null,null,null,null,null,null,null,null,null,null,null,null,null,null,null,null,null,null,null,null,0,0]
[null,null,null,null,null,null,null,null,null,null,null,null,null,null,null,null,null,null,null,null,0,0]
[null,null,null,null,null,null,null,null,null,null,null,null,null,null,null,null,null,null,null,null,0,0]
[null,null,null,null,null,null,null,null,null,null,null,null,null,null,null,null,null,null,null,null,0,0]
[null,null,null,null,null,null,null,null,null,null,null,null,null,null,null,null,null,null,null,null,0,0]
[null,null,null,null,null,null,null,null,null,null,null,null,null,null,null,null,null,null,null,null,0,0]
[null,null,null,null,null,null,null,null,null,null,null,null,null,null,null,null,null,null,null,null,0,0]
[null,null,null,null,null,null,null,null,null,null,null,null,null,null,null,null,null,null,null,null,0,0]
[null,null,null,null,null,null,null,null,null,null,null,null,null,null,null,null,null,null,null,null,0,0]
[null,null,null,null,null,null,null,null,null,null,null,null,null,null,null,null,null,null,null,null,0,0]
[null,null,null,null,null,null,null,null,null,null,null,null,null,null,null,null,null,null,null,null,0,0]
[null,null,null,null,null,null,null,null,null,null,null,null,null,null,null,null,null,null,null,null,0,0]
[null,null,null,null,null,null,null,null,null,null,null,null,null,null,null,null,null,null,null,null,0,0]
[null,null,null,null,null,null,null,null,null,null,null,null,null,null,null,null,null,null,null,null,0,0]
[null,null,null,null,null,null,null,null,null,null,null,null,null,null,null,null,null,null,null,null,0,0]
[null,null,null,null,null,null,null,null,null,null,null,null,null,null,null,null,null,null,null,null,0,0]
[null,null,null,null,null,null,null,null,null,null,null,null,null,null,null,null,null,null,null,null,0,0]
[null,null,null,null,null,null,null,null,null,null,null,null,null,null,null,null,null,null,null,null,0,0]
[null,null,null,null,null,null,null,null,null,null,null,null,null,null,null,null,null,null,null,null,0,0]
[null,null,null,null,null,null,null,null,null,null,null,null,null,null,null,null,null,null,null,null,0,0]
[null,null,null,null,null,null,null,null,null,null,null,null,null,null,null,null,null,null,null,null,0,0]
[null,null,null,null,null,null,null,null,null,null,null,null,null,null,null,null,null,null,null,null,0,0]
[null,null,null,null,null,null,null,null,null,null,null,null,null,null,null,null,null,null,null,null,0,0]
[null,null,null,null,null,null,null,null,null,null,null,null,null,null,null,null,null,null,null,null,0,0]
[null,null,null,null,null,null,null,null,null,null,null,null,null,null,null,null,null,null,null,null,0,0]
[null,null,null,null,null,null,null,null,null,null,null,null,null,null,null,null,null,null,null,null,0,0]
[null,null,null,null,null,null,null,null,null,null,null,null,null,null,null,null,null,null,null,null,0,0]
[null,null,null,null,null,null,null,null,null,null,null,null,null,null,null,null,null,null,null,null,0,0]
[null,null,null,null,null,null,null,null,null,null,null,null,null,null,null,null,null,null,null,null,0,0]
[null,null,null,null,null,null,null,null,null,null,null,null,null,null,null,null,null,null,null,null,0,0]
[null,null,null,null,null,null,null,null,null,null,null,null,null,null,null,null,null,null,null,null,0,0]
[null,null,null,null,null,null,null,null,null,null,null,null,null,null,null,null,null,null,null,null,0,0]
[null,null,null,null,null,null,null,null,null,null,null,null,null,null,null,null,null,null,null,null,0,0]
[null,null,null,null,null,null,null,null,null,null,null,null,null,null,null,null,null,null,null,null,0,0]
[null,null,null,null,null,null,null,null,null,null,null,null,null,null,null,null,null,null,null,null,0,0]
[null,null,null,null,null,null,null,null,null,null,null,null,null,null,null,null,null,null,null,null,0,0]
[null,null,null,null,null,null,null,null,null,null,null,null,null,null,null,null,null,null,null,null,0,0]
[null,null,null,null,null,null,null,null,null,null,null,null,null,null,null,null,null,null,null,null,0,0]
[null,null,null,null,null,null,null,null,null,null,null,null,null,null,null,null,null,null,null,null,0,0]
[null,null,null,null,null,null,null,null,null,null,null,null,null,null,null,null,null,null,null,null,0,0]
[null,null,null,null,null,null,null,null,null,null,null,null,null,null,null,null,null,null,null,null,0,0]
[null,null,null,null,null,null,null,null,null,null,null,null,null,null,null,null,null,null,null,null,0,0]
[null,null,null,null,null,null,null,null,null,null,null,null,null,null,null,null,null,null,null,null,0,0]
[null,null,null,null,null,null,null,null,null,null,null,null,null,null,null,null,null,null,null,null,0,0]
[null,null,null,null,null,null,null,null,null,null,null,null,null,null,null,null,null,null,null,null,0,0]
[null,null,null,null,null,null,null,null,null,null,null,null,null,null,null,null,null,null,null,null,0,0]
[null,null,null,null,null,null,null,null,null,null,null,null,null,null,null,null,null,null,null,null,0,0]
[null,null,null,null,null,null,null,null,null,null,null,null,null,null,null,null,null,null,null,null,0,0]
[null,null,null,null,null,null,null,null,null,null,null,null,null,null,null,null,null,null,null,null,0,0]
[null,null,null,null,null,null,null,null,null,null,null,null,null,null,null,null,null,null,null,null,0,0]
[null,null,null,null,null,null,null,null,null,null,null,null,null,null,null,null,null,null,null,null,0,0]
[null,null,null,null,null,null,null,null,null,null,null,null,null,null,null,null,null,null,null,null,0,0]
[null,null,null,null,null,null,null,null,null,null,null,null,null,null,null,null,null,null,null,null,{"$f":"IF(J389<=10000,J389*6/10000,IF(J389<=40000,6+(J389-10000)*12/10000,IF(J389<=100000,54+(J389-50000)*24/10000)))","v":0},{"$f":"G389*12*5/1000","v":0}]
[null,null,null,null,null,null,null,null,null,null,null,null,null,null,null,null,null,null,null,null,0,0]
[null,null,null,null,null,null,null,null,null,null,null,null,null,null,null,null,null,null,null,null,0,0]
[null,null,null,null,null,null,null,null,null,null,null,null,null,null,null,null,null,null,null,null,0,0]
[null,null,null,null,null,null,null,null,null,null,null,null,null,null,null,null,null,null,null,null,0,0]
[null,null,null,null,null,null,null,null,null,null,null,null,null,null,null,null,null,null,null,null,0,0]
[null,null,null,null,null,null,null,null,null,null,null,null,null,null,null,null,null,null,null,null,0,0]
[null,null,null,null,null,null,null,null,null,null,null,null,null,null,null,null,null,null,null,null,0,0]
[null,null,null,null,null,null,null,null,null,null,null,null,null,null,null,null,null,null,null,null,0,0]
[null,null,null,null,null,null,null,null,null,null,null,null,null,null,null,null,null,null,null,null,0,0]
[null,null,null,null,null,null,null,null,null,null,null,null,null,null,null,null,null,null,null,null,0,0]
[null,null,null,null,null,null,null,null,null,null,null,null,null,null,null,null,null,null,null,null,0,0]
[null,null,null,null,null,null,null,null,null,null,null,null,null,null,null,null,null,null,null,null,0,0]
[null,null,null,null,null,null,null,null,null,null,null,null,null,null,null,null,null,null,null,null,0,0]
[null,null,null,null,null,null,null,null,null,null,null,null,null,null,null,null,null,null,null,null,0,0]
[null,null,null,null,null,null,null,null,null,null,null,null,null,null,null,null,null,null,null,null,0,0]
[null,null,null,null,null,null,null,null,null,null,null,null,null,null,null,null,null,null,null,null,0,0]
[null,null,null,null,null,null,null,null,null,null,null,null,null,null,null,null,null,null,null,null,0,0]
[null,null,null,null,null,null,null,null,null,null,null,null,null,null,null,null,null,null,null,null,0,0]
[null,null,null,null,null,null,null,null,null,null,null,null,null,null,null,null,null,null,null,null,0,0]
[null,null,null,null,null,null,null,null,null,null,null,null,null,null,null,null,null,null,null,null,0,0]
[null,null,null,null,null,null,null,null,null,null,null,null,null,null,null,null,null,null,null,null,0,0]
[null,null,null,null,null,null,null,null,null,null,null,null,null,null,null,null,null,null,null,null,0,0]
[null,null,null,null,null,null,null,null,null,null,null,null,null,null,null,null,null,null,null,null,0,0]
[null,null,null,null,null,null,null,null,null,null,null,null,null,null,null,null,null,null,null,null,0,0]
[null,null,null,null,null,null,null,null,null,null,null,null,null,null,null,null,null,null,null,null,0,0]
[null,null,null,null,null,null,null,null,null,null,null,null,null,null,null,null,null,null,null,null,0,0]
[null,null,null,null,null,null,null,null,null,null,null,null,null,null,null,null,null,null,null,null,0,0]
[null,null,null,null,null,null,null,null,null,null,null,null,null,null,null,null,null,null,null,null,0,0]
[null,null,null,null,null,null,null,null,null,null,null,null,null,null,null,null,null,null,null,null,0,0]
[null,null,null,null,null,null,null,null,null,null,null,null,null,null,null,null,null,null,null,null,0,0]
[null,null,null,null,null,null,null,null,null,null,null,null,null,null,null,null,null,null,null,null,0,0]
[null,null,null,null,null,null,null,null,null,null,null,null,null,null,null,null,null,null,null,null,0,0]
[null,null,null,null,null,null,null,null,null,null,null,null,null,null,null,null,null,null,null,null,0,0]
[null,null,null,null,null,null,null,null,null,null,null,null,null,null,null,null,null,null,null,null,0,0]
[null,null,null,null,null,null,null,null,null,null,null,null,null,null,null,null,null,null,null,null,0,0]
[null,null,null,null,null,null,null,null,null,null,null,null,null,null,null,null,null,null,null,null,0,0]
[null,null,null,null,null,null,null,null,null,null,null,null,null,null,null,null,null,null,null,null,0,0]
[null,null,null,null,null,null,null,null,null,null,null,null,null,null,null,null,null,null,null,null,0,0]
[null,null,null,null,null,null,null,null,null,null,null,null,null,null,null,null,null,null,null,null,0,0]
[null,null,null,null,null,null,null,null,null,null,null,null,null,null,null,null,null,null,null,null,0,0]
[null,null,null,null,null,null,null,null,null,null,null,null,null,null,null,null,null,null,null,null,0,0]
[null,null,null,null,null,null,null,null,null,null,null,null,null,null,null,null,null,null,null,null,0,0]
[null,null,null,null,null,null,null,null,null,null,null,null,null,null,null,null,null,null,null,null,0,0]
[null,null,null,null,null,null,null,null,null,null,null,null,null,null,null,null,null,null,null,null,0,0]
[null,null,null,null,null,null,null,null,null,null,null,null,null,null,null,null,null,null,null,null,0,0]
[null,null,null,null,null,null,null,null,null,null,null,null,null,null,null,null,null,null,null,null,0,0]
[null,null,null,null,null,null,null,null,null,null,null,null,null,null,null,null,null,null,null,null,0,0]
[null,null,null,null,null,null,null,null,null,null,null,null,null,null,null,null,null,null,null,null,0,0]
[null,null,null,null,null,null,null,null,null,null,null,null,null,null,null,null,null,null,null,null,0,0]
[null,null,null,null,null,null,null,null,null,null,null,null,null,null,null,null,null,null,null,null,0,0]
[null,null,null,null,null,null,null,null,null,null,null,null,null,null,null,null,null,null,null,null,0,0]
[null,null,null,null,null,null,null,null,null,null,null,null,null,null,null,null,null,null,null,null,0,0]
[null,null,null,null,null,null,null,null,null,null,null,null,null,null,null,null,null,null,null,null,0,0]
[null,null,null,null,null,null,null,null,null,null,null,null,null,null,null,null,null,null,null,null,0,0]
[null,null,null,null,null,null,null,null,null,null,null,null,null,null,null,null,null,null,null,null,0,0]
[null,null,null,null,null,null,null,null,null,null,null,null,null,null,null,null,null,null,null,null,0,0]
[null,null,null,null,null,null,null,null,null,null,null,null,null,null,null,null,null,null,null,null,0,0]
[null,null,null,null,null,null,null,null,null,null,null,null,null,null,null,null,null,null,null,null,0,0]
[null,null,null,null,null,null,null,null,null,null,null,null,null,null,null,null,null,null,null,null,0,0]
[null,null,null,null,null,null,null,null,null,null,null,null,null,null,null,null,null,null,null,null,0,0]
[null,null,null,null,null,null,null,null,null,null,null,null,null,null,null,null,null,null,null,null,0,0]
[null,null,null,null,null,null,null,null,null,null,null,null,null,null,null,null,null,null,null,null,0,0]
[null,null,null,null,null,null,null,null,null,null,null,null,null,null,null,null,null,null,null,null,0,0]
[null,null,null,null,null,null,null,null,null,null,null,null,null,null,null,null,null,null,null,null,{"$f":"IF(J453<=10000,J453*6/10000,IF(J453<=40000,6+(J453-10000)*12/10000,IF(J453<=100000,54+(J453-50000)*24/10000)))","v":0},{"$f":"G453*12*5/1000","v":0}]
[null,null,null,null,null,null,null,null,null,null,null,null,null,null,null,null,null,null,null,null,0,0]
[null,null,null,null,null,null,null,null,null,null,null,null,null,null,null,null,null,null,null,null,0,0]
[null,null,null,null,null,null,null,null,null,null,null,null,null,null,null,null,null,null,null,null,0,0]
[null,null,null,null,null,null,null,null,null,null,null,null,null,null,null,null,null,null,null,null,0,0]
[null,null,null,null,null,null,null,null,null,null,null,null,null,null,null,null,null,null,null,null,0,0]
[null,null,null,null,null,null,null,null,null,null,null,null,null,null,null,null,null,null,null,null,0,0]
[null,null,null,null,null,null,null,null,null,null,null,null,null,null,null,null,null,null,null,null,0,0]
[null,null,null,null,null,null,null,null,null,null,null,null,null,null,null,null,null,null,null,null,0,0]
[null,null,null,null,null,null,null,null,null,null,null,null,null,null,null,null,null,null,null,null,0,0]
[null,null,null,null,null,null,null,null,null,null,null,null,null,null,null,null,null,null,null,null,0,0]
[null,null,null,null,null,null,null,null,null,null,null,null,null,null,null,null,null,null,null,null,0,0]

{"sheet":"التفريغ","index":1,"n_rows":281,"n_cols":22,"rows_kept":281,"cut":false,"hidden":false,"merged":[[22,0,22,6],[22,9,22,14],[23,0,23,14],[25,0,25,2],[15,1,15,3],[15,7,15,8],[15,9,15,10],[16,1,16,3],[16,7,16,8],[16,9,16,10],[26,10,26,12],[28,13,28,14],[29,13,29,14],[17,12,18,14],[21,7,21,8],[12,1,12,3],[12,7,12,8],[12,9,12,10],[13,1,13,3],[13,7,13,8],[13,9,13,10],[14,1,14,3],[14,7,14,8],[14,9,14,10],[11,1,11,3],[11,7,11,8],[11,9,11,10],[6,20,10,20],[6,21,10,21],[7,7,8,8],[7,9,7,10],[8,9,8,10],[8,11,9,11],[8,12,9,12],[8,13,10,13],[8,14,10,14],[6,7,6,8],[0,0,0,2],[1,0,1,2],[2,0,2,1],[2,3,2,12],[3,2,3,12],[4,2,4,12],[6,9,6,10],[6,11,7,14],[6,0,10,0],[6,1,10,3],[6,4,10,4],[6,5,10,5],[6,6,8,6],[9,6,10,6],[9,7,10,7],[9,8,10,8]]}
["وزاره :التموين والتجاره الداخليه"]
["مصلحه : مديريه تموين الدقهليه "]
[null,null,null,"نموذج رقم (1)"]
[null,null,"تفريغ كشوف بيان ارباب العهد والرسوم المسدده لحساب صندوق الضمان "]
[null,null,"لمده سنه من :    يوليو 2022       الى    يونيه          سنه  2023 "]
[]
["رقم مسلسل","اسم الموظف او المستخدم ",null,null,"وظيفته","نوع العهده","المرتب","القيمه",null,"قيمه العهده المشموله",null,"قيمه رسم الضمان ",null,null,null,null,null,null,null,null,"شرائح ارباب العهد","معادله الاساسى"]
[null,null,null,null,null,null,null,"التقديريه للعهده",null,"بالضمان حد اقصى"]
[null,null,null,null,null,null,null,null,null,"مائه الف جنيه",null,"المتحصل من ","المتحصل من ","ما تتحمله الحكومه","الجمله"]
[null,null,null,null,null,null,"الاساسى","نقود او اوراق دمغه","ادوات او مهمات","نقود او اوراق","ادوات "]
[null,null,null,null,null,null,null,null,null," دمغه 100 %","او مهمات 100%","الموظف","الموظف"]
[5,"كشف رقم 5",null,null,null,null,null,null,null,{"$f":"ورقة1!J22","v":421780},null,{"$f":"ورقة1!L22","v":131.6748},{"$f":"ورقة1!M22","v":126.3648},{"$f":"ورقة1!N22","v":582.70319999999992},{"$f":"ورقة1!O22","v":714.37799999999993},null,null,null,null,null,{"$f":"IF(J12<=10000,J12*6/10000,IF(J12<=40000,6+(J12-10000)*12/10000,IF(J12<=100000,54+(J12-50000)*24/10000)))","v":false},{"$f":"G12*12*5/1000","v":0}]
[13,"كشف رقم 13",null,null,null,null,null,null,null,{"$f":"ورقة1!J76","v":318000},null,{"$f":"ورقة1!L76","v":134.04480000000001},{"$f":"ورقة1!M76","v":134.04480000000001},{"$f":"ورقة1!N76","v":308.7552},{"$f":"ورقة1!O76","v":442.8},null,null,null,null,null,false,0]
[14,"كشف رقم 14",null,null,null,null,null,null,null,{"$f":"ورقة1!J118","v":520800},null,{"$f":"ورقة1!L118","v":142.9588},{"$f":"ورقة1!M118","v":139.43880000000001},{"$f":"ورقة1!N118","v":692.0412},{"$f":"ورقة1!O118","v":835.00000000000023},null,null,null,null,null,false,0]
[15,"كشف رقم 15",null,null,null,null,null,null,null,{"$f":"ورقة1!J153","v":2200},null,{"$f":"ورقة1!L153","v":5},{"$f":"ورقة1!M153","v":1.3199999999999998},{"$f":"ورقة1!N153","v":0},{"$f":"ورقة1!O153","v":5},null,null,null,null,null,1.32,0]
[null,null,null,null,null,null,null,null,null,null,null,null,null,null,null,null,null,null,null,null,0,0]
[null,"الاجمالى ",null,null,null,null,null,null,null,{"$f":"ROUNDDOWN(SUM(J12:K16),2)","v":1262780},null,{"$f":"SUM(L12:L16)","v":413.67840000000001},{"$f":"SUM(M12:M16)","v":401.16840000000002},{"$f":"SUM(N12:N16)","v":1583.4996000000001},{"$f":"SUM(O12:O16)","v":1997.1780000000001},null,null,null,null,null,false,0]
[null,null,null,null,null,null,null,null,null,null,null,null,"مديراداره الموارد البشريه",null,null,null,null,null,null,null,0,0]
[null,null,null,null,null,null,null,null,null,null,null,null,null,null,null,null,null,null,null,null,0,0]
[null,null,null,null,null,null,null,null,null,null,null,null,null,null,null,null,null,null,null,null,0,0]
[null,null,null,null,null,null,null,null,null,null,null,null,null,null,null,null,null,null,null,null,0,0]
[null,null,null,null,null,null,null,"اقرار",null,null,null,null,null,null,null,null,null,null,null,null,0,0]
["جمله رسوم الضمان الوارده فى هذا البيان وتبلغ",null,null,null,null,null,null,{"$f":"O17","v":1997.1780000000001},"جنيها",{"$f":"kh_TextNum(H23,,\"جنيه\",,\"قرشا\")","v":"فقط ألف وتسعمائة وسبعة وتسعون جنيهاً  و (18) قرشا"},null,null,null,null,null,null,null,null,null,null,false,0]
["سددت لصندوق التامين الحكومى لضمانات ارباب العهد عن المده من يوليو 2022 الى يونيه  2023     ",null,null,null,null,null,null,null,null,null,null,null,null,null,null,null,null,null,null,null,0,0]
[null,null,null,null,null,null,null,null,null,null,null,null,null,null,null,null,null,null,null,null,0,0]
["تحريرا فى :           سنه 2022",null,null,null,null,null,null,null,null,null,null,null,null,null,null,null,null,null,null,null,0,0]
[null,null,null,null,null,null,null,null,null,null,"مدير الحسابات ",null,null,null,null,null,null,null,null,null,0,0]
[null,null,null,null,null,null,null,null,null,null,null,null,null,null,null,null,null,null,null,null,0,0]
[null,null,null,null,null,null,null,null,null,null,null,null,null,"        يعتمد ",null,null,null,null,null,null,0,0]
[null,null,null,null,null,null,null,null,null,null,null,null,null,"      مدير المديريه",null,null,null,null,null,null,0,0]
[null,null,null,null,null,null,null,null,null,null,null,null,null,null,null,null,null,null,null,null,0,0]
[null,null,null,null,null,null,null,null,null,null,null,null,null,null,null,null,null,null,null,null,0,0]
[null,null,null,null,null,null,null,null,null,null,null,null,null,null,null,null,null,null,null,null,{"$f":"IF(J33<=10000,J33*6/10000,IF(J33<=40000,6+(J33-10000)*12/10000,IF(J33<=100000,54+(J33-50000)*24/10000)))","v":0},{"$f":"G33*12*5/1000","v":0}]
[null,null,null,null,null,null,null,null,null,null,null,null,null,null,null,null,null,null,null,null,0,0]
[null,null,null,null,null,null,null,null,null,null,null,null,null,null,null,null,null,null,null,null,0,0]
[null,null,null,null,null,null,null,null,null,null,null,null,null,null,null,null,null,null,null,null,0,0]
[null,null,null,null,null,null,null,null,null,null,null,null,null,null,null,null,null,null,null,null,0,0]
[null,null,null,null,null,null,null,null,null,null,null,null,null,null,null,null,null,null,null,null,0,0]
[null,null,null,null,null,null,null,null,null,null,null,null,null,null,null,null,null,null,null,null,0,0]
[null,null,null,null,null,null,null,null,null,null,null,null,null,null,null,null,null,null,null,null,0,0]
[null,null,null,null,null,null,null,null,null,null,null,null,null,null,null,null,null,null,null,null,0,0]
[null,null,null,null,null,null,null,null,null,null,null,null,null,null,null,null,null,null,null,null,0,0]
[null,null,null,null,null,null,null,null,null,null,null,null,null,null,null,null,null,null,null,null,0,0]
[null,null,null,null,null,null,null,null,null,null,null,null,null,null,null,null,null,null,null,null,0,0]
[null,null,null,null,null,null,null,null,null,null,null,null,null,null,null,null,null,null,null,null,0,0]
[null,null,null,null,null,null,null,null,null,null,null,null,null,null,null,null,null,null,null,null,0,0]
[null,null,null,null,null,null,null,null,null,null,null,null,null,null,null,null,null,null,null,null,0,0]
[null,null,null,null,null,null,null,null,null,null,null,null,null,null,null,null,null,null,null,null,0,0]
[null,null,null,null,null,null,null,null,null,null,null,null,null,null,null,null,null,null,null,null,0,0]
[null,null,null,null,null,null,null,null,null,null,null,null,null,null,null,null,null,null,null,null,0,0]
[null,null,null,null,null,null,null,null,null,null,null,null,null,null,null,null,null,null,null,null,0,0]
[null,null,null,null,null,null,null,null,null,null,null,null,null,null,null,null,null,null,null,null,0,0]
[null,null,null,null,null,null,null,null,null,null,null,null,null,null,null,null,null,null,null,null,0,0]
[null,null,null,null,null,null,null,null,null,null,null,null,null,null,null,null,null,null,null,null,0,0]
[null,null,null,null,null,null,null,null,null,null,null,null,null,null,null,null,null,null,null,null,0,0]
[null,null,null,null,null,null,null,null,null,null,null,null,null,null,null,null,null,null,null,null,0,0]
[null,null,null,null,null,null,null,null,null,null,null,null,null,null,null,null,null,null,null,null,0,0]
[null,null,null,null,null,null,null,null,null,null,null,null,null,null,null,null,null,null,null,null,0,0]
[null,null,null,null,null,null,null,null,null,null,null,null,null,null,null,null,null,null,null,null,0,0]
[null,null,null,null,null,null,null,null,null,null,null,null,null,null,null,null,null,null,null,null,0,0]
[null,null,null,null,null,null,null,null,null,null,null,null,null,null,null,null,null,null,null,null,0,0]
[null,null,null,null,null,null,null,null,null,null,null,null,null,null,null,null,null,null,null,null,0,0]
[null,null,null,null,null,null,null,null,null,null,null,null,null,null,null,null,null,null,null,null,0,0]
[null,null,null,null,null,null,null,null,null,null,null,null,null,null,null,null,null,null,null,null,0,0]
[null,null,null,null,null,null,null,null,null,null,null,null,null,null,null,null,null,null,null,null,0,0]
[null,null,null,null,null,null,null,null,null,null,null,null,null,null,null,null,null,null,null,null,0,0]
[null,null,null,null,null,null,null,null,null,null,null,null,null,null,null,null,null,null,null,null,0,0]
[null,null,null,null,null,null,null,null,null,null,null,null,null,null,null,null,null,null,null,null,0,0]
[null,null,null,null,null,null,null,null,null,null,null,null,null,null,null,null,null,null,null,null,0,0]
[null,null,null,null,null,null,null,null,null,null,null,null,null,null,null,null,null,null,null,null,0,0]
[null,null,null,null,null,null,null,null,null,null,null,null,null,null,null,null,null,null,null,null,0,0]
[null,null,null,null,null,null,null,null,null,null,null,null,null,null,null,null,null,null,null,null,0,0]
[null,null,null,null,null,null,null,null,null,null,null,null,null,null,null,null,null,null,null,null,0,0]
[null,null,null,null,null,null,null,null,null,null,null,null,null,null,null,null,null,null,null,null,0,0]
[null,null,null,null,null,null,null,null,null,null,null,null,null,null,null,null,null,null,null,null,0,0]
[null,null,null,null,null,null,null,null,null,null,null,null,null,null,null,null,null,null,null,null,0,0]
[null,null,null,null,null,null,null,null,null,null,null,null,null,null,null,null,null,null,null,null,0,0]
[null,null,null,null,null,null,null,null,null,null,null,null,null,null,null,null,null,null,null,null,0,0]
[null,null,null,null,null,null,null,null,null,null,null,null,null,null,null,null,null,null,null,null,0,0]
[null,null,null,null,null,null,null,null,null,null,null,null,null,null,null,null,null,null,null,null,0,0]
[null,null,null,null,null,null,null,null,null,null,null,null,null,null,null,null,null,null,null,null,0,0]
[null,null,null,null,null,null,null,null,null,null,null,null,null,null,null,null,null,null,null,null,0,0]
[null,null,null,null,null,null,null,null,null,null,null,null,null,null,null,null,null,null,null,null,{"$f":"IF(J83<=10000,J83*6/10000,IF(J83<=40000,6+(J83-10000)*12/10000,IF(J83<=100000,54+(J83-50000)*24/10000)))","v":0},{"$f":"G83*12*5/1000","v":0}]
[null,null,null,null,null,null,null,null,null,null,null,null,null,null,null,null,null,null,null,null,0,0]
[null,null,null,null,null,null,null,null,null,null,null,null,null,null,null,null,null,null,null,null,0,0]
[null,null,null,null,null,null,null,null,null,null,null,null,null,null,null,null,null,null,null,null,0,0]
[null,null,null,null,null,null,null,null,null,null,null,null,null,null,null,null,null,null,null,null,0,0]
[null,null,null,null,null,null,null,null,null,null,null,null,null,null,null,null,null,null,null,null,0,0]
[null,null,null,null,null,null,null,null,null,null,null,null,null,null,null,null,null,null,null,null,0,0]
[null,null,null,null,null,null,null,null,null,null,null,null,null,null,null,null,null,null,null,null,0,0]
[null,null,null,null,null,null,null,null,null,null,null,null,null,null,null,null,null,null,null,null,0,0]
[null,null,null,null,null,null,null,null,null,null,null,null,null,null,null,null,null,null,null,null,0,0]
[null,null,null,null,null,null,null,null,null,null,null,null,null,null,null,null,null,null,null,null,0,0]
[null,null,null,null,null,null,null,null,null,null,null,null,null,null,null,null,null,null,null,null,0,0]
[null,null,null,null,null,null,null,null,null,null,null,null,null,null,null,null,null,null,null,null,0,0]
[null,null,null,null,null,null,null,null,null,null,null,null,null,null,null,null,null,null,null,null,0,0]
[null,null,null,null,null,null,null,null,null,null,null,null,null,null,null,null,null,null,null,null,0,0]
[null,null,null,null,null,null,null,null,null,null,null,null,null,null,null,null,null,null,null,null,0,0]
[null,null,null,null,null,null,null,null,null,null,null,null,null,null,null,null,null,null,null,null,0,0]
[null,null,null,null,null,null,null,null,null,null,null,null,null,null,null,null,null,null,null,null,0,0]
[null,null,null,null,null,null,null,null,null,null,null,null,null,null,null,null,null,null,null,null,0,0]
[null,null,null,null,null,null,null,null,null,null,null,null,null,null,null,null,null,null,null,null,0,0]
[null,null,null,null,null,null,null,null,null,null,null,null,null,null,null,null,null,null,null,null,0,0]
[null,null,null,null,null,null,null,null,null,null,null,null,null,null,null,null,null,null,null,null,0,0]
[null,null,null,null,null,null,null,null,null,null,null,null,null,null,null,null,null,null,null,null,0,0]
[null,null,null,null,null,null,null,null,null,null,null,null,null,null,null,null,null,null,null,null,0,0]
[null,null,null,null,null,null,null,null,null,null,null,null,null,null,null,null,null,null,null,null,0,0]
[null,null,null,null,null,null,null,null,null,null,null,null,null,null,null,null,null,null,null,null,0,0]
[null,null,null,null,null,null,null,null,null,null,null,null,null,null,null,null,null,null,null,null,0,0]
[null,null,null,null,null,null,null,null,null,null,null,null,null,null,null,null,null,null,null,null,0,0]
[null,null,null,null,null,null,null,null,null,null,null,null,null,null,null,null,null,null,null,null,0,0]
[null,null,null,null,null,null,null,null,null,null,null,null,null,null,null,null,null,null,null,null,0,0]
[null,null,null,null,null,null,null,null,null,null,null,null,null,null,null,null,null,null,null,null,0,0]
[null,null,null,null,null,null,null,null,null,null,null,null,null,null,null,null,null,null,null,null,0,0]
[null,null,null,null,null,null,null,null,null,null,null,null,null,null,null,null,null,null,null,null,0,0]
[null,null,null,null,null,null,null,null,null,null,null,null,null,null,null,null,null,null,null,null,0,0]
[null,null,null,null,null,null,null,null,null,null,null,null,null,null,null,null,null,null,null,null,0,0]
[null,null,null,null,null,null,null,null,null,null,null,null,null,null,null,null,null,null,null,null,0,0]
[null,null,null,null,null,null,null,null,null,null,null,null,null,null,null,null,null,null,null,null,0,0]
[null,null,null,null,null,null,null,null,null,null,null,null,null,null,null,null,null,null,null,null,0,0]
[null,null,null,null,null,null,null,null,null,null,null,null,null,null,null,null,null,null,null,null,0,0]
[null,null,null,null,null,null,null,null,null,null,null,null,null,null,null,null,null,null,null,null,0,0]
[null,null,null,null,null,null,null,null,null,null,null,null,null,null,null,null,null,null,null,null,0,0]
[null,null,null,null,null,null,null,null,null,null,null,null,null,null,null,null,null,null,null,null,0,0]
[null,null,null,null,null,null,null,null,null,null,null,null,null,null,null,null,null,null,null,null,0,0]
[null,null,null,null,null,null,null,null,null,null,null,null,null,null,null,null,null,null,null,null,0,0]
[null,null,null,null,null,null,null,null,null,null,null,null,null,null,null,null,null,null,null,null,0,0]
[null,null,null,null,null,null,null,null,null,null,null,null,null,null,null,null,null,null,null,null,0,0]
[null,null,null,null,null,null,null,null,null,null,null,null,null,null,null,null,null,null,null,null,0,0]
[null,null,null,null,null,null,null,null,null,null,null,null,null,null,null,null,null,null,null,null,0,0]
[null,null,null,null,null,null,null,null,null,null,null,null,null,null,null,null,null,null,null,null,0,0]
[null,null,null,null,null,null,null,null,null,null,null,null,null,null,null,null,null,null,null,null,0,0]
[null,null,null,null,null,null,null,null,null,null,null,null,null,null,null,null,null,null,null,null,0,0]
[null,null,null,null,null,null,null,null,null,null,null,null,null,null,null,null,null,null,null,null,0,0]
[null,null,null,null,null,null,null,null,null,null,null,null,null,null,null,null,null,null,null,null,0,0]
[null,null,null,null,null,null,null,null,null,null,null,null,null,null,null,null,null,null,null,null,0,0]
[null,null,null,null,null,null,null,null,null,null,null,null,null,null,null,null,null,null,null,null,0,0]
[null,null,null,null,null,null,null,null,null,null,null,null,null,null,null,null,null,null,null,null,0,0]
[null,null,null,null,null,null,null,null,null,null,null,null,null,null,null,null,null,null,null,null,0,0]
[null,null,null,null,null,null,null,null,null,null,null,null,null,null,null,null,null,null,null,null,0,0]
[null,null,null,null,null,null,null,null,null,null,null,null,null,null,null,null,null,null,null,null,0,0]
[null,null,null,null,null,null,null,null,null,null,null,null,null,null,null,null,null,null,null,null,0,0]
[null,null,null,null,null,null,null,null,null,null,null,null,null,null,null,null,null,null,null,null,0,0]
[null,null,null,null,null,null,null,null,null,null,null,null,null,null,null,null,null,null,null,null,0,0]
[null,null,null,null,null,null,null,null,null,null,null,null,null,null,null,null,null,null,null,null,0,0]
[null,null,null,null,null,null,null,null,null,null,null,null,null,null,null,null,null,null,null,null,0,0]
[null,null,null,null,null,null,null,null,null,null,null,null,null,null,null,null,null,null,null,null,{"$f":"IF(J147<=10000,J147*6/10000,IF(J147<=40000,6+(J147-10000)*12/10000,IF(J147<=100000,54+(J147-50000)*24/10000)))","v":0},{"$f":"G147*12*5/1000","v":0}]
[null,null,null,null,null,null,null,null,null,null,null,null,null,null,null,null,null,null,null,null,0,0]
[null,null,null,null,null,null,null,null,null,null,null,null,null,null,null,null,null,null,null,null,0,0]
[null,null,null,null,null,null,null,null,null,null,null,null,null,null,null,null,null,null,null,null,0,0]
[null,null,null,null,null,null,null,null,null,null,null,null,null,null,null,null,null,null,null,null,0,0]
[null,null,null,null,null,null,null,null,null,null,null,null,null,null,null,null,null,null,null,null,0,0]
[null,null,null,null,null,null,null,null,null,null,null,null,null,null,null,null,null,null,null,null,0,0]
[null,null,null,null,null,null,null,null,null,null,null,null,null,null,null,null,null,null,null,null,0,0]
[null,null,null,null,null,null,null,null,null,null,null,null,null,null,null,null,null,null,null,null,0,0]
[null,null,null,null,null,null,null,null,null,null,null,null,null,null,null,null,null,null,null,null,0,0]
[null,null,null,null,null,null,null,null,null,null,null,null,null,null,null,null,null,null,null,null,0,0]
[null,null,null,null,null,null,null,null,null,null,null,null,null,null,null,null,null,null,null,null,0,0]
[null,null,null,null,null,null,null,null,null,null,null,null,null,null,null,null,null,null,null,null,0,0]
[null,null,null,null,null,null,null,null,null,null,null,null,null,null,null,null,null,null,null,null,0,0]
[null,null,null,null,null,null,null,null,null,null,null,null,null,null,null,null,null,null,null,null,0,0]
[null,null,null,null,null,null,null,null,null,null,null,null,null,null,null,null,null,null,null,null,0,0]
[null,null,null,null,null,null,null,null,null,null,null,null,null,null,null,null,null,null,null,null,0,0]
[null,null,null,null,null,null,null,null,null,null,null,null,null,null,null,null,null,null,null,null,0,0]
[null,null,null,null,null,null,null,null,null,null,null,null,null,null,null,null,null,null,null,null,0,0]
[null,null,null,null,null,null,null,null,null,null,null,null,null,null,null,null,null,null,null,null,0,0]
[null,null,null,null,null,null,null,null,null,null,null,null,null,null,null,null,null,null,null,null,0,0]
[null,null,null,null,null,null,null,null,null,null,null,null,null,null,null,null,null,null,null,null,0,0]
[null,null,null,null,null,null,null,null,null,null,null,null,null,null,null,null,null,null,null,null,0,0]
[null,null,null,null,null,null,null,null,null,null,null,null,null,null,null,null,null,null,null,null,0,0]
[null,null,null,null,null,null,null,null,null,null,null,null,null,null,null,null,null,null,null,null,0,0]
[null,null,null,null,null,null,null,null,null,null,null,null,null,null,null,null,null,null,null,null,0,0]
[null,null,null,null,null,null,null,null,null,null,null,null,null,null,null,null,null,null,null,null,0,0]
[null,null,null,null,null,null,null,null,null,null,null,null,null,null,null,null,null,null,null,null,0,0]
[null,null,null,null,null,null,null,null,null,null,null,null,null,null,null,null,null,null,null,null,0,0]
[null,null,null,null,null,null,null,null,null,null,null,null,null,null,null,null,null,null,null,null,0,0]
[null,null,null,null,null,null,null,null,null,null,null,null,null,null,null,null,null,null,null,null,0,0]
[null,null,null,null,null,null,null,null,null,null,null,null,null,null,null,null,null,null,null,null,0,0]
[null,null,null,null,null,null,null,null,null,null,null,null,null,null,null,null,null,null,null,null,0,0]
[null,null,null,null,null,null,null,null,null,null,null,null,null,null,null,null,null,null,null,null,0,0]
[null,null,null,null,null,null,null,null,null,null,null,null,null,null,null,null,null,null,null,null,0,0]
[null,null,null,null,null,null,null,null,null,null,null,null,null,null,null,null,null,null,null,null,0,0]
[null,null,null,null,null,null,null,null,null,null,null,null,null,null,null,null,null,null,null,null,0,0]
[null,null,null,null,null,null,null,null,null,null,null,null,null,null,null,null,null,null,null,null,0,0]
[null,null,null,null,null,null,null,null,null,null,null,null,null,null,null,null,null,null,null,null,0,0]
[null,null,null,null,null,null,null,null,null,null,null,null,null,null,null,null,null,null,null,null,0,0]
[null,null,null,null,null,null,null,null,null,null,null,null,null,null,null,null,null,null,null,null,0,0]
[null,null,null,null,null,null,null,null,null,null,null,null,null,null,null,null,null,null,null,null,0,0]
[null,null,null,null,null,null,null,null,null,null,null,null,null,null,null,null,null,null,null,null,0,0]
[null,null,null,null,null,null,null,null,null,null,null,null,null,null,null,null,null,null,null,null,0,0]
[null,null,null,null,null,null,null,null,null,null,null,null,null,null,null,null,null,null,null,null,0,0]
[null,null,null,null,null,null,null,null,null,null,null,null,null,null,null,null,null,null,null,null,0,0]
[null,null,null,null,null,null,null,null,null,null,null,null,null,null,null,null,null,null,null,null,0,0]
[null,null,null,null,null,null,null,null,null,null,null,null,null,null,null,null,null,null,null,null,0,0]
[null,null,null,null,null,null,null,null,null,null,null,null,null,null,null,null,null,null,null,null,0,0]
[null,null,null,null,null,null,null,null,null,null,null,null,null,null,null,null,null,null,null,null,0,0]
[null,null,null,null,null,null,null,null,null,null,null,null,null,null,null,null,null,null,null,null,0,0]
[null,null,null,null,null,null,null,null,null,null,null,null,null,null,null,null,null,null,null,null,0,0]
[null,null,null,null,null,null,null,null,null,null,null,null,null,null,null,null,null,null,null,null,0,0]
[null,null,null,null,null,null,null,null,null,null,null,null,null,null,null,null,null,null,null,null,0,0]
[null,null,null,null,null,null,null,null,null,null,null,null,null,null,null,null,null,null,null,null,0,0]
[null,null,null,null,null,null,null,null,null,null,null,null,null,null,null,null,null,null,null,null,0,0]
[null,null,null,null,null,null,null,null,null,null,null,null,null,null,null,null,null,null,null,null,0,0]
[null,null,null,null,null,null,null,null,null,null,null,null,null,null,null,null,null,null,null,null,0,0]
[null,null,null,null,null,null,null,null,null,null,null,null,null,null,null,null,null,null,null,null,0,0]
[null,null,null,null,null,null,null,null,null,null,null,null,null,null,null,null,null,null,null,null,0,0]
[null,null,null,null,null,null,null,null,null,null,null,null,null,null,null,null,null,null,null,null,0,0]
[null,null,null,null,null,null,null,null,null,null,null,null,null,null,null,null,null,null,null,null,0,0]
[null,null,null,null,null,null,null,null,null,null,null,null,null,null,null,null,null,null,null,null,0,0]
[null,null,null,null,null,null,null,null,null,null,null,null,null,null,null,null,null,null,null,null,0,0]
[null,null,null,null,null,null,null,null,null,null,null,null,null,null,null,null,null,null,null,null,{"$f":"IF(J211<=10000,J211*6/10000,IF(J211<=40000,6+(J211-10000)*12/10000,IF(J211<=100000,54+(J211-50000)*24/10000)))","v":0},{"$f":"G211*12*5/1000","v":0}]
[null,null,null,null,null,null,null,null,null,null,null,null,null,null,null,null,null,null,null,null,0,0]
[null,null,null,null,null,null,null,null,null,null,null,null,null,null,null,null,null,null,null,null,0,0]
[null,null,null,null,null,null,null,null,null,null,null,null,null,null,null,null,null,null,null,null,0,0]
[null,null,null,null,null,null,null,null,null,null,null,null,null,null,null,null,null,null,null,null,0,0]
[null,null,null,null,null,null,null,null,null,null,null,null,null,null,null,null,null,null,null,null,0,0]
[null,null,null,null,null,null,null,null,null,null,null,null,null,null,null,null,null,null,null,null,0,0]
[null,null,null,null,null,null,null,null,null,null,null,null,null,null,null,null,null,null,null,null,0,0]
[null,null,null,null,null,null,null,null,null,null,null,null,null,null,null,null,null,null,null,null,0,0]
[null,null,null,null,null,null,null,null,null,null,null,null,null,null,null,null,null,null,null,null,0,0]
[null,null,null,null,null,null,null,null,null,null,null,null,null,null,null,null,null,null,null,null,0,0]
[null,null,null,null,null,null,null,null,null,null,null,null,null,null,null,null,null,null,null,null,0,0]
[null,null,null,null,null,null,null,null,null,null,null,null,null,null,null,null,null,null,null,null,0,0]
[null,null,null,null,null,null,null,null,null,null,null,null,null,null,null,null,null,null,null,null,0,0]
[null,null,null,null,null,null,null,null,null,null,null,null,null,null,null,null,null,null,null,null,0,0]
[null,null,null,null,null,null,null,null,null,null,null,null,null,null,null,null,null,null,null,null,0,0]
[null,null,null,null,null,null,null,null,null,null,null,null,null,null,null,null,null,null,null,null,0,0]
[null,null,null,null,null,null,null,null,null,null,null,null,null,null,null,null,null,null,null,null,0,0]
[null,null,null,null,null,null,null,null,null,null,null,null,null,null,null,null,null,null,null,null,0,0]
[null,null,null,null,null,null,null,null,null,null,null,null,null,null,null,null,null,null,null,null,0,0]
[null,null,null,null,null,null,null,null,null,null,null,null,null,null,null,null,null,null,null,null,0,0]
[null,null,null,null,null,null,null,null,null,null,null,null,null,null,null,null,null,null,null,null,0,0]
[null,null,null,null,null,null,null,null,null,null,null,null,null,null,null,null,null,null,null,null,0,0]
[null,null,null,null,null,null,null,null,null,null,null,null,null,null,null,null,null,null,null,null,0,0]
[null,null,null,null,null,null,null,null,null,null,null,null,null,null,null,null,null,null,null,null,0,0]
[null,null,null,null,null,null,null,null,null,null,null,null,null,null,null,null,null,null,null,null,0,0]
[null,null,null,null,null,null,null,null,null,null,null,null,null,null,null,null,null,null,null,null,0,0]
[null,null,null,null,null,null,null,null,null,null,null,null,null,null,null,null,null,null,null,null,0,0]
[null,null,null,null,null,null,null,null,null,null,null,null,null,null,null,null,null,null,null,null,0,0]
[null,null,null,null,null,null,null,null,null,null,null,null,null,null,null,null,null,null,null,null,0,0]
[null,null,null,null,null,null,null,null,null,null,null,null,null,null,null,null,null,null,null,null,0,0]
[null,null,null,null,null,null,null,null,null,null,null,null,null,null,null,null,null,null,null,null,0,0]
[null,null,null,null,null,null,null,null,null,null,null,null,null,null,null,null,null,null,null,null,0,0]
[null,null,null,null,null,null,null,null,null,null,null,null,null,null,null,null,null,null,null,null,0,0]
[null,null,null,null,null,null,null,null,null,null,null,null,null,null,null,null,null,null,null,null,0,0]
[null,null,null,null,null,null,null,null,null,null,null,null,null,null,null,null,null,null,null,null,0,0]
[null,null,null,null,null,null,null,null,null,null,null,null,null,null,null,null,null,null,null,null,0,0]
[null,null,null,null,null,null,null,null,null,null,null,null,null,null,null,null,null,null,null,null,0,0]
[null,null,null,null,null,null,null,null,null,null,null,null,null,null,null,null,null,null,null,null,0,0]
[null,null,null,null,null,null,null,null,null,null,null,null,null,null,null,null,null,null,null,null,0,0]
[null,null,null,null,null,null,null,null,null,null,null,null,null,null,null,null,null,null,null,null,0,0]
[null,null,null,null,null,null,null,null,null,null,null,null,null,null,null,null,null,null,null,null,0,0]
[null,null,null,null,null,null,null,null,null,null,null,null,null,null,null,null,null,null,null,null,0,0]
[null,null,null,null,null,null,null,null,null,null,null,null,null,null,null,null,null,null,null,null,0,0]
[null,null,null,null,null,null,null,null,null,null,null,null,null,null,null,null,null,null,null,null,0,0]
[null,null,null,null,null,null,null,null,null,null,null,null,null,null,null,null,null,null,null,null,0,0]
[null,null,null,null,null,null,null,null,null,null,null,null,null,null,null,null,null,null,null,null,0,0]
[null,null,null,null,null,null,null,null,null,null,null,null,null,null,null,null,null,null,null,null,0,0]
[null,null,null,null,null,null,null,null,null,null,null,null,null,null,null,null,null,null,null,null,0,0]
[null,null,null,null,null,null,null,null,null,null,null,null,null,null,null,null,null,null,null,null,0,0]
[null,null,null,null,null,null,null,null,null,null,null,null,null,null,null,null,null,null,null,null,0,0]
[null,null,null,null,null,null,null,null,null,null,null,null,null,null,null,null,null,null,null,null,0,0]
[null,null,null,null,null,null,null,null,null,null,null,null,null,null,null,null,null,null,null,null,0,0]
[null,null,null,null,null,null,null,null,null,null,null,null,null,null,null,null,null,null,null,null,0,0]
[null,null,null,null,null,null,null,null,null,null,null,null,null,null,null,null,null,null,null,null,0,0]
[null,null,null,null,null,null,null,null,null,null,null,null,null,null,null,null,null,null,null,null,0,0]
[null,null,null,null,null,null,null,null,null,null,null,null,null,null,null,null,null,null,null,null,0,0]
[null,null,null,null,null,null,null,null,null,null,null,null,null,null,null,null,null,null,null,null,0,0]
[null,null,null,null,null,null,null,null,null,null,null,null,null,null,null,null,null,null,null,null,0,0]
[null,null,null,null,null,null,null,null,null,null,null,null,null,null,null,null,null,null,null,null,0,0]
[null,null,null,null,null,null,null,null,null,null,null,null,null,null,null,null,null,null,null,null,0,0]
[null,null,null,null,null,null,null,null,null,null,null,null,null,null,null,null,null,null,null,null,0,0]
[null,null,null,null,null,null,null,null,null,null,null,null,null,null,null,null,null,null,null,null,0,0]
[null,null,null,null,null,null,null,null,null,null,null,null,null,null,null,null,null,null,null,null,0,0]
[null,null,null,null,null,null,null,null,null,null,null,null,null,null,null,null,null,null,null,null,{"$f":"IF(J275<=10000,J275*6/10000,IF(J275<=40000,6+(J275-10000)*12/10000,IF(J275<=100000,54+(J275-50000)*24/10000)))","v":0},{"$f":"G275*12*5/1000","v":0}]
[null,null,null,null,null,null,null,null,null,null,null,null,null,null,null,null,null,null,null,null,0,0]
[null,null,null,null,null,null,null,null,null,null,null,null,null,null,null,null,null,null,null,null,0,0]
[null,null,null,null,null,null,null,null,null,null,null,null,null,null,null,null,null,null,null,null,0,0]
[null,null,null,null,null,null,null,null,null,null,null,null,null,null,null,null,null,null,null,null,0,0]
[null,null,null,null,null,null,null,null,null,null,null,null,null,null,null,null,null,null,null,null,0,0]
[null,null,null,null,null,null,null,null,null,null,null,null,null,null,null,null,null,null,null,null,0,0]